Workbook

Sheet Wheels Calculator
D5: Customer Name: | H5: Name of analysis:
D6: Customer | H6: Application
B8: Model: | D8: Emission Level: | F8: Transmission: | H8: Front Axle: | J8: Rear Axle:
B9: 8R 370 | D9: Final Tier 4/ Stage 5 | F9: e23 | H9: 1300 MFWD | J9: 120mm x 3012mm (Double Taper)
A10: (kg) | B10: =_xlfn.IFNA(INDEX('Weight Variables - Wheels'!B27:B34,MATCH('Wheels Calculator'!B9,'Weight Variables - Wheels'!B3:B10,0)),0) -> 370 | D10: =_xlfn.IFNA(INDEX('Weight Variables - Wheels'!C27:C30,MATCH('Wheels Calculator'!D9,'Weight Variables - Wheels'!C3:C6,0)),0) -> 1504 | F10: =_xlfn.IFNA(INDEX('Weight Variables - Wheels'!D27:D30,MATCH('Wheels Calculator'!F9,'Weight Variables - Wheels'!D3:D6,0)),0) -> 1167.8 | H10: =INDEX('Weight Variables - Wheels'!E28:E31,MATCH('Wheels Calculator'!H9,FrontAxle,0)) -> 1044.35101 | J10: =_xlfn.IFNA(INDEX('Weight Variables - Wheels'!F27:F33,MATCH(J9,'Weight Variables - Wheels'!F3:F9,0)),0) -> 494.61
A11: (mm) | B11: 5300 | D11: =_xlfn.IFNA(INDEX('Weight Variables - Wheels'!C59:C61,MATCH('Wheels Calculator'!D9,'Weight Variables - Wheels'!C4:C6,0)),0) -> -2967.805 | F11: =_xlfn.IFNA(INDEX(mm_Trans, MATCH(F9,Trans,0)),0) -> -1977 | H11: =_xlfn.IFNA(INDEX('Weight Variables - Wheels'!E59:E62,MATCH('Wheels Calculator'!H9,FrontAxle,0)),0) -> -3050 | J11: 0
B12: -880 | F12: 16 PST not available for 345hp or 370hp models | H12: 1300 not available for 320/345/370/410hp models | J12: 110mm options not available for 320/345/370/410hp models
B14: Front Fenders: | D14: Rear Fenders: | F14: Front PTO: | H14: Trailer Brakes: | J14: Fuel Level:
B15: 500mm (19.7in) | D15: 2.55m | F15: Not Included | H15: Dual line Air | J15: Half
A16: (kg) | B16: =_xlfn.IFNA(INDEX(kg_FrontFenders, MATCH(B15,FrontFenders,0)),0) -> 60.921402 | D16: =_xlfn.IFNA(INDEX(kg_RearFenders, MATCH(D15,RearFenders,0)),0) -> 53.4 | F16: =_xlfn.IFNA(INDEX(kg_FrontPTO, MATCH(F15,FrontPTO,0)),0) -> 0 | H16: =_xlfn.IFNA(INDEX(kg_TrailerBrakes,MATCH(H15,TrailerBrakes,0)),0) -> 0 | J16: =_xlfn.IFNA(INDEX('Weight Variables - Wheels'!AB28:AB33, MATCH(J15,'Weight Variables - Wheels'!AB4:AB9,0)),0) -> 274.125
A17: (mm) | B17: =_xlfn.IFNA(INDEX(mm_FrontFenders, MATCH(B15,FrontFenders,0)),0) -> -2636 | D17: =_xlfn.IFNA(INDEX(mm_RearFenders, MATCH(D15,RearFenders,0)),0) -> 29.826 | F17: =_xlfn.IFNA(INDEX(mm_FrontPTO, MATCH(F15,FrontPTO,0)),0) -> 0 | H17: =_xlfn.IFNA(INDEX(mm_TrailerBrakes,MATCH(H15,TrailerBrakes,0)),0) -> 0 | J17: =_xlfn.IFNA(INDEX('Weight Variables - Wheels'!AB59:AB64, MATCH(J15,'Weight Variables - Wheels'!AB4:AB9,0)),0) -> -1305
F18: Requires ILS | J18: Assuming .85 kg/L
B20: Front Hitch | D20: Rear Hitch: | F20: Drawbar: | H20: 3 in 1 Rails Option: | J20: # of SCVs:
B21: Not Included | D21: CAT 4 Ball Ends w/ Sway Block | F21: Cat 4 | H21: Not Included | J21: 5
A22: (kg) | B22: =_xlfn.IFNA(INDEX(kg_FrontHitch, MATCH(B21,FrontHitch,0)),0) -> 0 | D22: =_xlfn.IFNA(INDEX('Weight Variables - Wheels'!W28:W39,MATCH('Wheels Calculator'!D21,'Weight Variables - Wheels'!W4:W15,0)),0) -> 0 | F22: =_xlfn.IFNA(INDEX('Weight Variables - Wheels'!X27:X34, MATCH(F21,'Weight Variables - Wheels'!X3:X10,0)),0) -> 165.77 | H22: =_xlfn.IFNA(INDEX('Weight Variables - Wheels'!Y27:Y33,MATCH('Wheels Calculator'!H21,'Weight Variables - Wheels'!Y3:Y8,0)),0) -> 0 | J22: =_xlfn.IFNA(INDEX('Weight Variables - Wheels'!AC27:AC32,MATCH('Wheels Calculator'!J21,'Weight Variables - Wheels'!AC3:AC8,0)),0) -> 84.161861
A23: (mm) | B23: =_xlfn.IFNA(INDEX(mm_FrontHitch, MATCH(B21,FrontHitch,0)),0) -> 0 | D23: =_xlfn.IFNA(INDEX('Weight Variables - Wheels'!W59:W70,MATCH('Wheels Calculator'!D21,'Weight Variables - Wheels'!W4:W15,0)),0) -> 0 | F23: =_xlfn.IFNA(INDEX('Weight Variables - Wheels'!X58:X65,MATCH('Wheels Calculator'!F21,'Weight Variables - Wheels'!X3:X10,0)),0) -> 685.1222037 | H23: =_xlfn.IFNA(INDEX('Weight Variables - Wheels'!Y57:Y62,MATCH('Wheels Calculator'!H21,'Weight Variables - Wheels'!Y3:Y8,0)),0) -> 0 | J23: =_xlfn.IFNA(INDEX('Weight Variables - Wheels'!AC58:AC63,MATCH('Wheels Calculator'!J21,'Weight Variables - Wheels'!AC3:AC8,0)),0) -> 388
B24: None | D24: None | F24: None | H24: None | J24: None
B26: Brand
B27: Firestone
B28: Front Tires | F28: Rear Tires
B29: Group 44 | F29: Group 48
B30: Single: | D30: Dual: | F30: Single: | H30: Dual: | J30: Triple:
B31: 420/85R34 | D31: Not Included | F31: 480/80R50 | H31: 480/80R50
B32: Tire Load Index | D32: Configuration | F32: Tire Load Index | H32: Configuration
B33: =INDEX(Wheel_Tire_Data!$AF$5:$AF$99,MATCH($B$27&'Wheels Calculator'!$B$31,INDEX(Wheel_Tire_Data!$AD$5:$AD$99&Wheel_Tire_Data!$AB$5:$AB$99,),0)) -> 147 | D33: =_xlfn.IFNA(IF(AND($H$9='Weight Variables - Wheels'!$E$4,$D$31<>"",D31<>"Not Available",$D$31<>"Not Included"), "Duals Not Permissible On 1300 MFWD Axle",IF(AND(B31<>D31,D31<>"",D31<>"Not Available",D31<>"Not Included"), "Please select the same size dual",IF(AND($B$31<>0,$B$31=$D$31,$D$36>$B$33),CONCATENATE("Axle Load Exceeds Tire Load Index. Requires ",D36),IF(AND(B31<>D31,$B$36>$B$33),CONCATENATE("Axle Load Exceeds Tire Load Index. Requires ",B36),"GOOD")))),"GOOD") -> GOOD | F33: =INDEX(Wheel_Tire_Data!$G$5:$G$99,MATCH($B$27&'Wheels Calculator'!$F$31,INDEX(Wheel_Tire_Data!$E$5:$E$99&Wheel_Tire_Data!C5:C99,),0)) -> 159 | H33: =_xlfn.IFNA(_xlfn.IFS(AND(J31<>F31,AND(LEN(J31)>4,J31<>"Not Included",$J$31<>"Not Available")),"Please select the same size triple",OR(AND(H31<>F31,AND(LEN(H31)>4,H31<>"Not Included",H31<>"Not Available")),AND($J$31<>"Not Available",$J$31<>"Not Included",LEN(J31)>4,$J$31<>$H$31)),"Please select the same size dual or remove triple"),IF(AND(F31=H31,H31<>J31,$F$33<$H$36),CONCATENATE("Requires a minimum load index of ",H36),IF(AND(F31<>H31,F31<>J31,$F$33<$F$36),CONCATENATE("Requires a minimum load index of ",F36),IF(AND(F31=H31,H31=J31,$F$33<$J$36),CONCATENATE("Requires minimum load index of ",J36),"GOOD")))) -> GOOD
A34: (kg) | B34: =_xlfn.IFNA(INDEX(Wheel_Tire_Data!$AN$5:$AN$99,MATCH($B$27&$B$31,INDEX(Wheel_Tire_Data!$AD$5:$AD$99&Wheel_Tire_Data!$AB$5:$AB$99,),0)),0) -> 487.5 | D34: =IF(OR($D$31="",$D$31="Not Included", $D$31="Not Available"),0,INDEX(Wheel_Tire_Data!AO5:AO99,MATCH('Wheels Calculator'!B27:D27&'Wheels Calculator'!B31,INDEX(Wheel_Tire_Data!$AD$5:$AD$99&Wheel_Tire_Data!$AB$5:$AB$99,),0))) -> 0 | F34: =_xlfn.IFNA(INDEX(Wheel_Tire_Data!$U$5:$U$73,MATCH($B$27&$F$31,INDEX(Wheel_Tire_Data!$E$5:$E$73&Wheel_Tire_Data!$C$5:$C$73,),0)),0) -> 776 | H34: =IF(OR(H31="",H31=Wheel_Tire_Data!M103,H31="Not Available"),0,IF(OR($J$31="",$J$31="Not Available", $J$31="Not Included"),_xlfn.IFNA(INDEX(Wheel_Tire_Data!$V$5:$V$99,MATCH($B$27&'Wheels Calculator'!$F$31,INDEX(Wheel_Tire_Data!$E$5:$E$99&Wheel_Tire_Data!$C$5:$C$99,),0)),0),_xlfn.IFNA(INDEX(Wheel_Tire_Data!$W$5:$W$99,MATCH($B$27&'Wheels Calculator'!$F$31,INDEX(Wheel_Tire_Data!$E$5:$E$99&Wheel_Tire_Data!$C$5:$C$99,),0)),0))) -> 999.48 | J34: =_xlfn.IFNA(IF(OR(J31=Wheel_Tire_Data!$N$103,J31="",J31="Not Available"),0,INDEX(Wheel_Tire_Data!$X$5:$X$99,MATCH($B$27&$F$31,INDEX(Wheel_Tire_Data!$E$5:$E$99&Wheel_Tire_Data!$C$5:$C$99,),0))+Wheel_Tire_Data!C115),0) -> 0
A35: (mm) | B35: =IF(H9='Weight Variables - Wheels'!$E$4,'Weight Variables - Wheels'!$E$59,'Weight Variables - Wheels'!$E$60) -> -3050 | D35: =IF(H9='Weight Variables - Wheels'!$E$4,'Weight Variables - Wheels'!$E$59,'Weight Variables - Wheels'!$E$60) -> -3050 | F35: 0 | H35: 0 | J35: 0
B36: =INDEX(Wheel_Tire_Data!$P$102:$P$134,MATCH('Wheels Calculator'!$D$64/2,Wheel_Tire_Data!$Q$102:$Q$134,-1)) -> 145 | D36: =INDEX(Wheel_Tire_Data!$P$102:$P$134,MATCH('Wheels Calculator'!$D$64/4/0.88,Wheel_Tire_Data!$Q$102:$Q$134,-1)) -> 133 | F36: =INDEX(Wheel_Tire_Data!$P$102:$P$134,MATCH('Wheels Calculator'!$D$65/2,Wheel_Tire_Data!$Q$102:$Q$134,-1)) -> 152 | H36: =INDEX(Wheel_Tire_Data!$P$102:$P$134,MATCH('Wheels Calculator'!$D$65/4/0.88,Wheel_Tire_Data!$Q$102:$Q$134,-1)) -> 133 | J36: =INDEX(Wheel_Tire_Data!$P$102:$P$134,MATCH('Wheels Calculator'!D65/6/0.82,Wheel_Tire_Data!$Q$102:$Q$134,-1)) -> 133 | N36: =L36*1 -> 0
B38: Choose a rear dual ballast package -OR- build a custom package with the options to the right | D38: Rear Wheel Weights
D39: Inside Drive: | F39: Outside Drive: | H39: Outside Dual/Triple: | J39: Configuration
B40: 1 | D40: Not Included | F40: Not Included | H40: Not Included | J40: =_xlfn.IFNA(_xlfn.IFS(D63>20000,'Weight Variables - Wheels'!T16,AND(AND(H31<>Wheel_Tire_Data!M102,H31<>"Not Included",H31<>"NOT AVAILABLE"),OR(F40<>"Not Included",$B$43='Weight Variables - Wheels'!AD10,$B$43='Weight Variables - Wheels'!AD11,$B$43='Weight Variables - Wheels'!AD12,$B$43='Weight Variables - Wheels'!AD13)),'Weight Variables - Wheels'!T10,AND(OR(H31=0,H31="Not Included",H31="NOT AVAILABLE"),OR(H40<>"Not Included",$B$43='Weight Variables - Wheels'!AD6,$B$43='Weight Variables - Wheels'!AD7,$B$43='Weight Variables - Wheels'!AD8,$B$43='Weight Variables - Wheels'!AD9)),'Weight Variables - Wheels'!T11,AND(OR(RIGHT(F31,2)="30",RIGHT(F31,2)="28",RIGHT(F31,2)="32",RIGHT(F31,2)="34",RIGHT(F31,2)="38"),RIGHT('Wheels Calculator'!J9,6)="Taper)",OR(F40='Weight Variables - Wheels'!R5,F40='Weight Variables - Wheels'!R6,B43='Weight Variables - Wheels'!AD10,B43='Weight Variables - Wheels'!AD11,B43='Weight Variables - Wheels'!AD12,B43='Weight Variables - Wheels'!AD13)),'Weight Variables - Wheels'!T12,AND(RIGHT('Wheels Calculator'!J9,6)="Taper)",OR(F40='Weight Variables - Wheels'!R5,F40='Weight Variables - Wheels'!R6,B43='Weight Variables - Wheels'!AD10,B43='Weight Variables - Wheels'!AD11,B43='Weight Variables - Wheels'!AD12,B43='Weight Variables - Wheels'!AD13)),'Weight Variables - Wheels'!T13,AND(OR(RIGHT(F31,2)="30",RIGHT(F31,2)="28",RIGHT(F31,2)="32",RIGHT(F31,2)="34",RIGHT(F31,2)="38"),OR(F40='Weight Variables - Wheels'!R5,F40='Weight Variables - Wheels'!R6,H40='Weight Variables - Wheels'!S5,'Wheels Calculator'!H40='Weight Variables - Wheels'!S6,'Wheels Calculator'!H40='Weight Variables - Wheels'!S7,B43='Weight Variables - Wheels'!AD6, B43='Weight Variables - Wheels'!AD7, B43='Weight Variables - Wheels'!AD8, B43='Weight Variables - Wheels'!AD9, B43='Weight Variables - Wheels'!AD10,B43='Weight Variables - Wheels'!AD11,B43='Weight Variables - Wheels'!AD12,B43='Weight Variables - Wheels'!AD13)),'Weight Variables - Wheels'!T14,AND(B43<>"None",OR(D41<>0,F41<>0,H41<>0,D46<>'Weight Variables - Wheels'!P5)),'Weight Variables - Wheels'!T15,AND(AND(J31<>Wheel_Tire_Data!M102,J31<>"Not Included",J31<>"NOT AVAILABLE"),OR(H40<>"Not Included",B43='Weight Variables - Wheels'!AD6, B43='Weight Variables - Wheels'!AD7, B43='Weight Variables - Wheels'!AD8,B43='Weight Variables - Wheels'!AD9, B43='Weight Variables - Wheels'!AD10)),'Weight Variables - Wheels'!T17), "GOOD") -> GOOD
A41: (kg) | B41: =INDEX('Weight Variables - Wheels'!AD28:AD37,MATCH(B43,'Weight Variables - Wheels'!AD4:AD13,0)) -> 0 | D41: =_xlfn.IFNA(INDEX('Weight Variables - Wheels'!Q28:Q32, MATCH(D40,'Weight Variables - Wheels'!Q4:Q8,0)),0) -> 0 | F41: =_xlfn.IFNA(INDEX(kg_rearW2, MATCH(F40,rearW2,0)),0) -> 0 | H41: =_xlfn.IFNA(INDEX('Weight Variables - Wheels'!R28:R34, MATCH('Wheels Calculator'!H40,'Weight Variables - Wheels'!R4:R10, 0)),0) -> 0 | J41: =TEXT(D57,"yymmdd") -> 230123
A42: (mm) | B42: =INDEX('Weight Variables - Wheels'!AD59:AD68,MATCH(B43,'Weight Variables - Wheels'!AD4:AD13,0)) -> 0 | D42: Not Included | F42: None | H42: None | J42: 0
B43: None
D44: Front Ballast | H44: Other Ballast
D45: Front Suitcase Weights: | H45: Front Mono Weight: | J45: Additional Ballast (kg)
D46: Front Weight Support, No Weights | J46: Expand Rows, Enter Below
B47: (kg) | D47: =_xlfn.IFNA(INDEX(kg_SuitcaseWeights, MATCH(D46,SuitcaseWeights,0)),0) -> 191.64 | H47: =_xlfn.IFNA(INDEX(kg_PickUpWeights, MATCH(H46,PickUpWeights,0)),0) -> 0
B48: (mm) | D48: =_xlfn.IFNA(INDEX(mm_SuitcaseWeights, MATCH(D46,SuitcaseWeights,0)),0) -> -4496.1 | H48: =_xlfn.IFNA(INDEX(mm_PickUpWeights, MATCH(H46,PickUpWeights,0)),0) -> 0 | J48: 0
J49: Input wieght (kg), and distance from rear axle (mm). Forward is negative.
F54: Configuration Summary:
B56: Analysis: | D56: =IF(H6="","Not specified",H6) -> Application | F56: Model: | H56: =B9 -> 8R 370
B57: Date Completed: | D57: =TODAY() -> 2023-01-23 | F57: Emission Levels: | H57: =D9 -> Final Tier 4/ Stage 5
B58: Performed by: | D58: =IF(D6="","Not specified",D6) -> Customer | F58: Transmission: | H58: =F9 -> e23
F59: Front Axle: | H59: =H9 -> 1300 MFWD
F60: Rear Axle: | H60: =J9 -> 120mm x 3012mm (Double Taper)
F61: Front Fenders: | H61: =B15 -> 500mm (19.7in)
F62: Rear Fenders: | H62: =D15 -> 2.55m
B63: Total Weight (kg) | D63: =SUM(F10,H10,J10,B16,D16,F16,H16,J16,B22,D22,F22,H22,J22,B34,D34,F34,H34,J34,D41,F41,H41,D47,H47,J47,D10,B41,B11) -> 12603.75927 | F63: Front PTO: | H63: =F15 -> Not Included
B64: Front Axle Weight (kg) | D64: =IF(H9="1300 MFWD",(D63*-D68)/-H11,(D63*-D68)/-H11) -> 5685.44237 | F64: Trailer Brakes: | H64: =H15 -> Dual line Air
B65: Rear Axle Weight (kg) | D65: =D63-D64 -> 6918.316903 | F65: Fuel Level: | H65: =J15 -> Half
B66: Front Split | D66: =D64/D63 -> 0.4510909996 | F66: Front Hitch (3 point): | H66: =B21 -> Not Included
B67: Rear Split | D67: =D65/D63 -> 0.5489090004 | F67: =D20 -> Rear Hitch: | H67: =D21 -> CAT 4 Ball Ends w/ Sway Block
B68: Dist. from Rear Axle forward to C.G. (mm) | D68: =SUM(B11*B12,D10*D11,F10*F11,H10*H11,J10*J11,B16*B17,D16*D17,F16*F17,H16*H17,J17*J16,B22*B23,D22*D23,F22*F23,H22*H23,J22*J23,B34*B35,D34*D35,D47*D48,H47*H48,J47*J48)/SUM(F10,H10,J10,B16,D16,F16,H16,J16,B22,D22,F22,H22,J22,B34,D34,F34,H34,J34,D41,F41,H41,D47,H47,J47,D10,B41,B11) -> -1375.827549 | F68: =F20 -> Drawbar: | H68: =F21 -> Cat 4
F69: =H20 -> 3 in 1 Rails Option: | H69: =H21 -> Not Included
B70: Kg / Engine Power (ps) | D70: =D63/B10 -> 34.06421425 | F70: =J20 -> # of SCVs: | H70: =J21 -> 5
F71: Front Wheel - Single: | H71: =B31 -> 420/85R34
F72: Front Wheel - Dual: | H72: =D31 -> Not Included
F73: Rear Wheel - Single: | H73: =F31 -> 480/80R50
B74: Total Weight (lb) | D74: =D63*2.20462 -> 27786.49977 | F74: Rear Wheel - Dual: | H74: =H31 -> 480/80R50
B75: Front Axle Weight (lb) | D75: =D64*2.20462 -> 12534.23996 | F75: Rear Wheel - Triple: | H75: =J31 -> 0
B76: Rear Axle Weight (lb) | D76: =D65*2.20462 -> 15252.25981 | F76: Inside Drive Rear Wheel Weights: | H76: =IF(AND(B43="964 kg",J40="GOOD"),"2x205 kg",IF(OR(B43="2450 kg",B43="3795 kg",B43="5409 kg",B43="3723 kg",B43="4463 kg",B43="2623 kg",B43="3363 kg"),"625 kg",D40)) -> Not Included
B77: lb / Engine Power (ps) | D77: =D74/B10 -> 75.09864802 | F77: Outside Drive Rear Wheel Weights: | H77: =IF(OR(B43="1940 kg",B43="4463 kg",B43="3363 kg"),'Weight Variables - Wheels'!R6,IF(OR(B43="2450 kg",B43="3723 kg",B43="2623 kg"),'Weight Variables - Wheels'!R5,IF(OR(B43="3795 kg",B43="5409 kg"),'Weight Variables - Wheels'!S7,F40))) -> Not Included
F78: Outside dual/triple Rear Wheel Weights: | H78: =H40 -> Not Included
F79: =D45 -> Front Suitcase Weights: | H79: =D46 -> Front Weight Support, No Weights
F80: Pick-up (Monster) Weights: | H80: =H46 -> 
F81: Additional Ballast (kg): | H81: =J47 -> 0

Sheet Wheel_Tire_Data (hidden)
B1: Do not add rows above or below. To input new tires replace "x" in lower rows | G1: No R2 Tread included | I1: Rear | AB1: Front
H3: Tire | J3: Single Wheel | L3: Dual/Dual Wheel | O3: Dual/Trip Wheel | R3: Triple Wheel | AG3: Tire | AI3: Single Wheel | AK3: Dual/Dual Wheel
C4: Tire Size | D4: Section width | E4: Brand | F4: Group | G4: Load Rating | H4: PN | I4: Mass (kg) | J4: PN | K4: Weight | L4: Size | M4: PN | N4: Weight | O4: Size | P4: PN | Q4: Weight | R4: Size | S4: PN | T4: Weight | U4: Single Mass | V4: Dual/D Mass | W4: Dual/T mass | X4: Triple Mass | AB4: Tire Size | AC4: Section width | AD4: Brand | AE4: Group | AF4: Load Rating | AG4: PN | AH4: Mass (kg) | AI4: PN | AJ4: Weight | AK4: Size | AL4: PN | AM4: Weight | AN4: Single Mass | AO4: Dual/D Mass | AP4: Dual/T mass | AQ4: Triple Mass
B5: Rear | C5: 320/105R54 | D5: =MID(C5,FIND("/",C5)-3,3) -> 320 | E5: Goodyear | F5: Group 48 | G5: 163 | H5: R345492 | I5: 155 | J5: RE564283 | K5: 81 | L5: =C5 -> 320/105R54 | M5: RE564284 | N5: 145 | O5: =C5 -> 320/105R54 | P5: RE564284 | Q5: 145 | R5: =C5 -> 320/105R54 | S5: RE564284 | T5: 145 | U5: =(2*I5)+(2*K5) -> 472 | V5: =IFERROR((2*N5)+(2*I5)+IF(D5>800,$D$103,($D$103+$D$104)),"") -> 747 | W5: =IFERROR((2*I5)+(2*Q5)+IF(D5>800,$D$103,($D$103+$D$104)),"") -> 747 | X5: =IFERROR((2*I5)+(2*T5),"") -> 600 | AB5: 320/80R42 | AC5: =MID(AB5,FIND("/",AB5)-3,3) -> 320 | AD5: Goodyear | AE5: Group 43 | AF5: 141 | AG5: R333095 | AH5: 93 | AI5: RE558176 | AJ5: 139 | AK5: =AB5 -> 320/80R42 | AL5: RE558178 | AM5: 141.6 | AN5: =IFERROR((AJ5*2)+(AH5*2),"") -> 464 | AO5: =IFERROR(((AH5*2)+(AM5*2))+$AC$108,"") -> 469.2
B6: Rear | C6: IF710/70R42 | D6: 710 | E6: Michelin | F6: Group 48 | G6: 179 | H6: R248946 | I6: 348 | J6: RE283141 | K6: 175.05 | L6: =C6 -> IF710/70R42 | M6: RE262592 | N6: 264.36 | O6: Not Available | P6: NA | Q6: NA | R6: Not Available | S6: NA | T6: NA | U6: 1046.1 | V6: 1371.72 | AB6: IF320/80R42 | AC6: =MID(AB6,FIND("/",AB6)-3,3) -> 320 | AD6: Goodyear | AE6: Group 43 | AF6: 149 | AG6: R538505 | AH6: 100 | AI6: RE558176 | AJ6: 144 | AK6: IF320/80R42 | AL6: RE558178 | AM6: 141.6 | AN6: =IFERROR((AJ6*2)+(AH6*2),"") -> 488 | AO6: =IFERROR(((AH6*2)+(AM6*2))+$AC$108,"") -> 483.2
B7: Rear | C7: 320/90R54 | D7: 320 | E7: Firestone | F7: Group 47 | G7: 149 | H7: R171126 | I7: 140 | J7: RE161991 | K7: 190 | L7: =C7 -> 320/90R54 | M7: RE211636 | N7: 254.77 | O7: =C7 -> 320/90R54 | P7: RE211636 | Q7: 254.77 | R7: =C7 -> 320/90R54 | S7: RE211636 | T7: 254.77 | U7: 660 | V7: 936.54 | W7: 936.54 | X7: 789.54 | AB7: 380/80R38 | AC7: =MID(AB7,FIND("/",AB7)-3,3) -> 380 | AD7: Mitas | AE7: Group 43 | AF7: 142 | AG7: R333095 | AH7: 96 | AI7: RE589286 | AJ7: 105.36 | AK7: 380/80R38 | AL7: RE589284 | AM7: 111 | AN7: =IFERROR((AJ7*2)+(AH7*2),"") -> 402.72 | AO7: =IFERROR(((AH7*2)+(AM7*2))+$AC$108,"") -> 414
B8: Rear | C8: 320/90R54 | D8: 320 | E8: Goodyear | F8: Group 47 | G8: 149 | H8: R171125 | I8: 109 | J8: RE161991 | K8: 190 | L8: =C8 -> 320/90R54 | M8: RE211636 | N8: 254.77 | O8: =C8 -> 320/90R54 | P8: =M8 -> RE211636 | Q8: 254.77 | R8: =C8 -> 320/90R54 | S8: RE211636 | T8: 254.77 | U8: 598 | V8: 874.54 | W8: 874.54 | X8: 727.54 | AB8: 380/80R38 | AC8: 380 | AD8: Firestone | AE8: Group 43 | AF8: 142 | AG8: R186620 | AH8: 121 | AI8: RE589286 | AJ8: 105.36 | AK8: 380/80R38 | AL8: RE589284 | AM8: 111 | AN8: 452.72 | AO8: =IFERROR(((AH8*2)+(AM8*2))+$AC$108,"") -> 464
B9: Rear | C9: 380/90R50 | D9: 380 | E9: Firestone | F9: Group 47 | G9: 151 | H9: R150849 | I9: 153 | J9: RE172186 | K9: 129 | L9: 380/90R50 | M9: RE172939 | N9: 257.4 | O9: 380/90R50 | P9: RE172939 | Q9: 257.4 | R9: 380/90R50 | S9: RE172939 | T9: 257.4 | U9: 564 | V9: 967.8 | W9: 967.8 | X9: 820.8 | AB9: IF380/80R38 | AC9: 380 | AD9: Firestone | AE9: Group 43 | AF9: 149 | AG9: R325308 | AH9: 139 | AI9: RE589286 | AJ9: 105.36 | AK9: IF380/80R38 | AL9: RE589284 | AM9: 111 | AN9: 488.72 | AO9: 500
B10: Rear | C10: 380/90R50 | D10: 380 | E10: Goodyear | F10: Group 47 | G10: 151 | H10: R566170 | I10: 153 | J10: RE172186 | K10: 129 | L10: 380/90R50 | M10: RE172939 | N10: 257.4 | O10: 380/90R50 | P10: RE172939 | Q10: 257.4 | R10: 380/90R50 | S10: RE172939 | T10: 257.4 | U10: 564 | V10: 967.8 | W10: 967.8 | X10: 820.8 | AB10: 380/80R38 | AC10: 380 | AD10: Goodyear | AE10: Group 43 | AF10: 142 | AG10: R171118 | AH10: 98 | AI10: RE589286 | AJ10: 105.36 | AK10: 380/80R38 | AL10: RE589284 | AM10: 111 | AN10: 406.72 | AO10: 418
B11: Rear | C11: 380/90R54 | D11: 380 | E11: Firestone | F11: Group 48 | G11: 152 | H11: R542548 | I11: 165 | J11: RE223670 | K11: 201.5 | L11: =C11 -> 380/90R54 | M11: RE211235 | N11: 252.7 | O11: Not Available | P11: NA | Q11: NA | R11: Not Available | S11: NA | T11: NA | U11: 733 | V11: 982.4 | AB11: 380/80R38 | AC11: 380 | AD11: Michelin | AE11: Group 43 | AF11: 142 | AG11: L220846 | AH11: 95 | AI11: RE589286 | AJ11: 105.36 | AK11: 380/80R38 | AL11: RE589284 | AM11: 111 | AN11: 400.72 | AO11: 412
B12: Rear | C12: 380/90R54 | D12: 380 | E12: Goodyear | F12: Group 48 | G12: 152 | H12: R223672 | I12: 165 | J12: RE223670 | K12: 201.5 | L12: 380/90R54 | M12: RE211235 | N12: 252.7 | O12: Not Available | P12: NA | Q12: NA | R12: Not Available | S12: NA | T12: NA | U12: 733 | V12: 982.4 | AB12: IF380/80R38 | AC12: 380 | AD12: Goodyear | AE12: Group 43 | AF12: 149 | AG12: R569945 | AH12: 113 | AI12: RE589286 | AJ12: 105.36 | AK12: IF380/80R38 | AL12: RE589284 | AM12: 111 | AN12: 436.72 | AO12: 448
B13: Rear | C13: 480/80R46 | D13: 480 | E13: Mitas | F13: Group 47 | G13: 158 | H13: R554863 | I13: 178 | J13: RE175533 | K13: 122.23 | L13: 480/80R46 | M13: RE214650 | N13: 167.65 | O13: =C13 -> 480/80R46 | P13: RE167955 | Q13: 197.74 | R13: =C13 -> 480/80R46 | S13: RE214650 | T13: 167.65 | U13: 600.46 | V13: 838.3 | W13: 898.48 | X13: 691.3 | AB13: 380/80R38 | AC13: 380 | AD13: Trelleborg | AE13: Group 43 | AF13: 142 | AG13: R569958 | AH13: 117 | AI13: RE589286 | AJ13: 105.36 | AK13: 380/80R38 | AL13: RE589284 | AM13: 111 | AN13: 444.72 | AO13: 456
B14: Rear | C14: 480/80R46 | D14: 480 | E14: Goodyear | F14: Group 47 | G14: 158 | H14: R569949 | I14: 196 | J14: RE175533 | K14: 122.23 | L14: 480/80R46 | M14: RE214650 | N14: 167.65 | O14: =C14 -> 480/80R46 | P14: RE167955 | Q14: 197.74 | R14: =C14 -> 480/80R46 | S14: RE214650 | T14: 167.65 | U14: 636.46 | V14: 874.3 | W14: 934.48 | X14: 727.3 | AB14: 380/85R34 | AC14: 380 | AD14: Mitas | AE14: Group 42 | AF14: 145 | AG14: R554852 | AH14: 95 | AI14: RE171021 | AJ14: 112.71 | AK14: 380/85R34 | AL14: RE588915 | AM14: 107.5 | AN14: 415.42 | AO14: 405
B15: Rear | C15: 480/80R46 | D15: 480 | E15: Trelleborg | F15: Group 47 | G15: 158 | H15: R555810 | I15: 185 | J15: RE175533 | K15: 122.23 | L15: 480/80R46 | M15: RE214650 | N15: 167.65 | O15: Not Available | R15: Not Available | U15: 614.46 | V15: 852.3 | W15: 517 | X15: 370 | AB15: 380/85R34 | AC15: 380 | AD15: Firestone | AE15: Group 42 | AF15: 137 | AG15: R224601 | AH15: 112 | AI15: RE171021 | AJ15: 112.71 | AK15: 380/85R34 | AL15: RE588915 | AM15: 107.5 | AN15: 449.42 | AO15: 439
B16: Rear | C16: 480/80R46 | D16: 480 | E16: Michelin | F16: Group 47 | G16: 158 | H16: R567426 | I16: 190 | J16: RE175533 | K16: 122.23 | L16: 480/80R46 | M16: RE214650 | N16: 167.65 | O16: =C16 -> 480/80R46 | P16: RE167955 | Q16: 197.74 | R16: =C16 -> 480/80R46 | S16: RE214650 | T16: 167.65 | U16: 624.46 | V16: 862.3 | W16: 922.48 | X16: 715.3 | AB16: 380/85R34 | AC16: 380 | AD16: Firestone | AE16: Group 42 | AF16: 145 | AG16: R325307 | AH16: 114 | AI16: RE171021 | AJ16: 112.71 | AK16: 380/85R34 | AL16: RE588915 | AM16: 107.5 | AN16: 453.42 | AO16: 443
B17: Rear | C17: 480/80R46 | D17: 480 | E17: Firestone | F17: Group 47 | G17: 158 | H17: L224788 | I17: 214 | J17: RE175533 | K17: 122.23 | L17: 480/80R46 | M17: RE214650 | N17: 167.65 | O17: 480/80R46 | P17: RE167955 | Q17: 197.74 | R17: 480/80R46 | S17: RE214650 | T17: 167.65 | U17: 672.46 | V17: 910.3 | W17: 970.48 | X17: 763.3 | AB17: 380/85R34 | AC17: 380 | AD17: Goodyear | AE17: Group 42 | AF17: 137 | AG17: R173357 | AH17: 92 | AI17: RE171021 | AJ17: 112.71 | AK17: 380/85R34 | AL17: RE588915 | AM17: 107.5 | AN17: 409.42 | AO17: 399
B18: Rear | C18: 480/80R50 | D18: 480 | E18: Mitas | F18: Group 48 | G18: 159 | H18: R333091 | I18: 185 | J18: RE269701 | K18: 143 | L18: 480/80R50 | M18: RE248310 | N18: 181.24 | O18: 480/80R50 | P18: RE173099 | Q18: 212.5 | R18: 480/80R50 | S18: RE248310 | T18: 181.24 | U18: 656 | V18: 879.48 | W18: 942 | X18: 732.48 | AB18: VF420/85R34 | AC18: 420 | AD18: Michelin | AE18: Group 43 | AF18: 154 | AG18: R538498 | AH18: 125 | AI18: RE588914 | AJ18: 105.75 | AK18: VF420/85R34 | AL18: RE588915 | AM18: 107.5 | AN18: 461.5 | AO18: 465
B19: Rear | C19: 480/80R50 | D19: 480 | E19: Firestone | F19: Group 48 | G19: 159 | H19: R166191 | I19: 245 | J19: RE269701 | K19: 143 | L19: 480/80R50 | M19: RE248310 | N19: 181.24 | O19: 480/80R50 | P19: RE173099 | Q19: 212.5 | R19: 480/80R50 | S19: RE248310 | T19: 181.24 | U19: 776 | V19: 999.48 | W19: 1062 | X19: 852.48 | AB19: 420/85R34 | AC19: 420 | AD19: Mitas | AE19: Group 43 | AF19: 147 | AG19: R333093 | AH19: 108 | AI19: RE588914 | AJ19: 105.75 | AK19: 420/85R34 | AL19: RE588915 | AM19: 107.5 | AN19: 427.5 | AO19: 431
B20: Rear | C20: 480/80R50 | D20: 480 | E20: Michelin | F20: Group 48 | G20: 159 | H20: R563549 | I20: 200 | J20: RE269701 | K20: 143 | L20: 480/80R50 | M20: RE248310 | N20: 181.24 | O20: 480/80R50 | P20: RE173099 | Q20: 212.5 | R20: 480/80R50 | S20: RE248310 | T20: 181.24 | U20: 686 | V20: 909.48 | W20: 972 | X20: 762.48 | AB20: 420/85R34 | AC20: 420 | AD20: Firestone | AE20: Group 43 | AF20: 147 | AG20: R166192 | AH20: 138 | AI20: RE588914 | AJ20: 105.75 | AK20: 420/85R34 | AL20: RE588915 | AM20: 107.5 | AN20: 487.5 | AO20: 491
B21: Rear | C21: 480/80R50 | D21: 480 | E21: Goodyear | F21: Group 48 | G21: 159 | H21: R569957 | I21: 215 | J21: RE269701 | K21: 143 | L21: 480/80R50 | M21: RE248310 | N21: 181.24 | O21: 480/80R50 | P21: RE173099 | Q21: 212.5 | R21: 480/80R50 | S21: RE248310 | T21: 181.24 | U21: 716 | V21: 939.48 | W21: 1002 | X21: 792.48 | AB21: IF420/85R34 | AC21: 420 | AD21: Firestone | AE21: Group 43 | AF21: 152 | AG21: R318666 | AH21: 140 | AI21: RE588914 | AJ21: 105.75 | AK21: IF420/85R34 | AL21: RE588915 | AM21: 107.5 | AN21: 491.5 | AO21: 495
B22: Rear | C22: 480/80R50 | D22: 480 | E22: Trelleborg | F22: Group 48 | G22: 159 | H22: R569960 | I22: 201 | J22: RE269701 | K22: 143 | L22: 480/80R50 | M22: RE248310 | N22: 181.24 | O22: 480/80R50 | P22: RE173099 | Q22: 212.5 | R22: 480/80R50 | S22: RE248310 | T22: 181.24 | U22: 688 | V22: 911.48 | W22: 974 | X22: 764.48 | AB22: 420/85R34 | AC22: 420 | AD22: Michelin | AE22: Group 43 | AF22: 147 | AG22: L204354 | AH22: 108 | AI22: RE588914 | AJ22: 105.75 | AK22: 420/85R34 | AL22: RE588915 | AM22: 107.5 | AN22: 427.5 | AO22: 431
B23: Rear | C23: 480/95R50 | D23: 480 | E23: Michelin | F23: Group 49 | G23: 164 | H23: R552963 | I23: 230 | J23: RE339637 | K23: 147.82 | L23: 480/95R50 | M23: RE339639 | N23: 183.3 | O23: Not Available | P23: NA | Q23: NA | R23: Not Available | S23: NA | T23: NA | U23: 755.64 | V23: 973.6 | AB23: 420/85R34 | AC23: 420 | AD23: Michelin | AE23: Group 43 | AF23: 147 | AG23: R563557 | AH23: 110 | AI23: RE588914 | AJ23: 105.75 | AK23: 420/85R34 | AL23: RE588915 | AM23: 107.5 | AN23: 431.5 | AO23: 435
B24: Rear | C24: 480/95R50 | D24: 480 | E24: Mitas | F24: Group 49 | G24: 164 | H24: R542354 | I24: 279 | J24: RE339637 | K24: 147.82 | L24: 480/95R50 | M24: RE339639 | N24: 183.3 | O24: Not Available | P24: NA | Q24: NA | R24: Not Available | S24: NA | T24: NA | U24: 853.64 | V24: 1071.6 | AB24: 420/85R34 | AC24: 420 | AD24: Goodyear | AE24: Group 43 | AF24: 147 | AG24: R569944 | AH24: 124 | AI24: RE588914 | AJ24: 105.75 | AK24: 420/85R34 | AL24: RE588915 | AM24: 107.5 | AN24: 459.5 | AO24: 463
B25: Rear | C25: 480/95R50 | D25: 480 | E25: Goodyear | F25: Group 49 | G25: 164 | H25: R304876 | I25: 249 | J25: RE339637 | K25: 147.82 | L25: 480/95R50 | M25: RE339639 | N25: 183.3 | O25: Not Available | P25: NA | Q25: NA | R25: Not Available | S25: NA | T25: NA | U25: 793.64 | V25: 1011.6 | AB25: 420/85R34 | AC25: 420 | AD25: Trelleborg | AE25: Group 43 | AF25: 147 | AG25: R569959 | AH25: 133 | AI25: RE588914 | AJ25: 105.75 | AK25: 420/85R34 | AL25: RE588915 | AM25: 107.5 | AN25: 477.5 | AO25: 481
B26: Rear | C26: IF480/80R50 | D26: 480 | E26: Firestone | F26: Group 48 | G26: 166 | H26: R318687 | I26: 248 | J26: RE339637 | K26: 148 | L26: IF480/80R50 | M26: RE339639 | N26: 183.3 | O26: =C26 -> IF480/80R50 | P26: RE339639 | Q26: 183.3 | R26: =C26 -> IF480/80R50 | S26: RE339639 | T26: 183.3 | U26: 792 | V26: 1009.6 | W26: 1009.6 | X26: 862.6 | AB26: 420/85R38 | AC26: 420 | AD26: Goodyear | AE26: Group 44 | AF26: 149 | AG26: R304877 | AH26: 155 | AI26: RE309225 | AJ26: 125.51 | AK26: Not Available | AL26: NA | AM26: NA | AN26: 561.02
B27: Rear | C27: IF480/95R50 | D27: 480 | E27: Firestone | F27: Group 49 | G27: 154 | H27: R571092 | I27: 258.5 | J27: RE339637 | K27: 147.82 | L27: IF480/95R50 | M27: RE339639 | N27: 183.3 | O27: Not Available | P27: NA | Q27: NA | R27: Not Available | S27: NA | T27: NA | U27: =(2*I27)+(2*K27) -> 812.64 | V27: 1030.6 | AB27: 420/90R30 | AC27: 420 | AD27: Mitas | AE27: Group 42 | AF27: 147 | AG27: R554869 | AH27: 109 | AI27: RE156708 | AJ27: 87.47 | AK27: Not Available | AL27: NA | AM27: NA | AN27: 392.94
B28: Rear | C28: VF480/80R50 | D28: 480 | E28: Michelin | F28: Group 48 | G28: 166 | H28: R538497 | I28: 205 | J28: RE339637 | K28: 147.82 | L28: VF480/80R50 | M28: RE339639 | N28: 183.3 | O28: =C28 -> VF480/80R50 | P28: RE339639 | Q28: 183.3 | R28: =C28 -> VF480/80R50 | S28: RE339639 | T28: 183.3 | U28: 705.64 | V28: 923.6 | W28: 923.6 | X28: 776.6 | AB28: 420/90R30 | AC28: =MID(AB28,FIND("/",AB28)-3,3) -> 420 | AD28: Goodyear | AE28: Group 42 | AF28: 142 | AG28: R173356 | AH28: 102 | AI28: RE156708 | AJ28: 87.47 | AK28: Not Available | AL28: NA | AM28: NA | AN28: 378.94
B29: Rear | C29: 520/85R42 | D29: 520 | E29: Mitas | F29: Group 47 | G29: 162 | H29: L216048 | I29: 207 | J29: RE175533 | K29: 122.23 | L29: 520/85R42 | M29: RE214649 | N29: 167.7 | O29: 520/85R42 | P29: RE214649 | Q29: 167.6 | R29: 520/85R42 | S29: RE160189 | T29: 214 | U29: 658.46 | V29: 896.4 | W29: 896.2 | X29: 842 | AB29: 420/90R30 | AC29: =MID(AB29,FIND("/",AB29)-3,3) -> 420 | AD29: Michelin | AE29: Group 42 | AF29: 147 | AG29: R567425 | AH29: 115.5 | AI29: RE156708 | AJ29: 87.47 | AK29: Not Available | AL29: NA | AM29: NA | AN29: 405.94
B30: Rear | C30: 520/85R42 | D30: 520 | E30: Goodyear | F30: Group 47 | G30: 157 | H30: R127989 | I30: 196.4 | J30: RE175533 | K30: 122.23 | L30: 520/85R42 | M30: RE214649 | N30: 167.7 | O30: 520/85R42 | P30: RE214649 | Q30: 167.6 | R30: 520/85R42 | S30: RE160189 | T30: 214 | U30: 637.26 | V30: 875.2 | W30: 875 | X30: 820.8 | AA30: =IFERROR(INDEX($T$15:$T$36,SMALL(IF(#REF!=#REF!,ROW($T$15:$T$36)),ROW(#REF!))-38,1),"") ->  | AB30: 420/90R30 | AC30: =MID(AB30,FIND("/",AB30)-3,3) -> 420 | AD30: Firestone | AE30: Group 42 | AF30: 145 | AG30: L224790 | AH30: 136 | AI30: RE156708 | AJ30: 87.47 | AK30: Not Available | AL30: NA | AM30: NA | AN30: 446.94
B31: Rear | C31: 520/85R42 | D31: 520 | E31: Firestone | F31: Group 47 | G31: 157 | H31: R571093 | I31: 212 | J31: RE175533 | K31: 122.23 | L31: 520/85R42 | M31: RE214649 | N31: 167.7 | O31: 520/85R42 | P31: RE214649 | Q31: 167.6 | R31: 520/85R42 | S31: RE160189 | T31: 214 | U31: 668.46 | V31: 906.4 | W31: 906.2 | X31: 852 | AB31: 420/90R30 | AC31: =MID(AB31,FIND("/",AB31)-3,3) -> 420 | AD31: Trelleborg | AE31: Group 42 | AF31: 147 | AG31: R555809 | AH31: 115 | AI31: RE156708 | AJ31: 87.47 | AK31: Not Available | AL31: NA | AM31: NA | AN31: 404.94
B32: Rear | C32: 520/85R46 | D32: 520 | E32: Mitas | F32: Group 48 | G32: 158 | H32: R310935 | I32: 212 | J32: RE175533 | K32: 122.23 | L32: 520/85R46 | M32: RE214649 | N32: 167.7 | O32: 520/85R46 | P32: RE273209 | Q32: 168 | R32: 520/85R46 | S32: RE160189 | T32: 214 | U32: 668.46 | V32: 906.4 | W32: 907 | X32: 852 | AB32: 480/70R30 | AC32: =MID(AB32,FIND("/",AB32)-3,3) -> 480 | AD32: Mitas | AE32: Group 42 | AF32: 152 | AG32: R554870 | AH32: 120 | AI32: RE156708 | AJ32: 87.47 | AK32: Not Available | AL32: NA | AM32: NA | AN32: 414.94
B33: Rear | C33: 520/85R46 | D33: 520 | E33: Firestone | F33: Group 48 | G33: 158 | H33: R160187 | I33: 268 | J33: RE175533 | K33: 122.23 | L33: 520/85R46 | M33: RE214649 | N33: 167.7 | O33: 520/85R46 | P33: RE273209 | Q33: 168 | R33: 520/85R46 | S33: RE160189 | T33: 214 | U33: 780.46 | V33: 1018.4 | W33: 1019 | X33: 964 | AB33: 480/70R30 | AC33: 480 | AD33: Goodyear | AE33: Group 42 | AF33: 152 | AG33: R570508 | AH33: 147 | AI33: RE156708 | AJ33: 87.47 | AK33: Not Available | AL33: NA | AM33: NA | AN33: 468.94
B34: Rear | C34: 520/85R46 | D34: 520 | E34: Goodyear | F34: Group 48 | G34: 158 | H34: R569954 | I34: 210 | J34: RE175533 | K34: 122.23 | L34: 520/85R46 | M34: RE214649 | N34: 167.7 | O34: 520/85R46 | P34: RE273209 | Q34: 168 | R34: 520/85R46 | S34: RE160189 | T34: 214 | U34: 664.46 | V34: 902.4 | W34: 903 | X34: 848 | AB34: 480/70R30 | AC34: 480 | AD34: Firestone | AE34: Group 42 | AF34: 152 | AG34: L224787 | AH34: 143 | AI34: RE156708 | AJ34: 87.47 | AK34: Not Available | AL34: NA | AM34: NA | AN34: 460.94
B35: Rear | C35: 620/70R42 | D35: 620 | E35: Michelin | F35: Group 47 | G35: 160 | H35: R211252 | I35: 245 | J35: RE175487 | K35: 139 | L35: 620/70R42 | M35: RE557607 | N35: 227.11 | O35: Not Available | P35: NA | Q35: NA | R35: Not Available | S35: NA | T35: NA | U35: 768 | V35: 1091.22 | AB35: 480/70R34 | AC35: 480 | AD35: Michelin | AE35: Group 43 | AF35: 143 | AG35: R211247 | AH35: 126 | AI35: RE588914 | AJ35: 105.75 | AK35: =AB35 -> 480/70R34 | AL35: RE588915 | AM35: 107.5 | AN35: 463.5 | AO35: 467
B36: Rear | C36: 620/70R42 | D36: 620 | E36: Firestone | F36: Group 47 | G36: 160 | H36: R154264 | I36: 285 | J36: RE175487 | K36: 139 | L36: 620/70R42 | M36: RE557607 | N36: 227.11 | O36: Not Available | P36: NA | Q36: NA | R36: Not Available | S36: NA | T36: NA | U36: 848 | V36: 1171.22 | AB36: 480/70R34 | AC36: 480 | AD36: Mitas | AE36: Group 43 | AF36: 143 | AG36: R310936 | AH36: 117 | AI36: RE588914 | AJ36: 105.75 | AK36: =AB36 -> 480/70R34 | AL36: RE588915 | AM36: 107.5 | AN36: 445.5 | AO36: 449
B37: Rear | C37: 620/70R46 | D37: =MID(C37,FIND("/",C37)-3,3) -> 620 | E37: Goodyear | F37: Group 48 | G37: 167 | H37: R171114 | I37: 252 | J37: RE174387 | K37: 139 | L37: 620/70R46 | M37: RE174388 | N37: 252.64 | O37: Not Available | P37: NA | Q37: NA | R37: Not Available | S37: NA | T37: NA | U37: 782 | V37: =IFERROR((2*N37)+(2*I37)+IF(D37>800,$D$103,($D$103+$D$104)),"") -> 1156.28 | W37: =IFERROR((2*I37)+(2*Q37)+IF(D37>800,$D$103,($D$103+$D$104)),"") ->  | X37: =IFERROR((2*I37)+(2*T37),"") ->  | AB37: 480/70R34 | AC37: 480 | AD37: Firestone | AE37: Group 43 | AF37: 155 | AG37: R186696 | AH37: 166 | AI37: RE588914 | AJ37: 105.75 | AK37: =AB37 -> 480/70R34 | AL37: RE588915 | AM37: 107.5 | AN37: 543.5 | AO37: 547
B38: Rear | C38: 620/70R46 | D38: 620 | E38: Firestone | F38: Group 48 | G38: 167 | H38: R566173 | I38: 252 | J38: RE174387 | K38: 139 | L38: 620/70R46 | M38: RE174388 | N38: 252.64 | O38: Not Available | P38: NA | Q38: NA | R38: Not Available | S38: NA | T38: NA | U38: 782 | V38: 1156.28 | AB38: 480/70R34 | AC38: =MID(AB38,FIND("/",AB38)-3,3) -> 480 | AD38: Goodyear | AE38: Group 43 | AF38: 155 | AG38: R171120 | AH38: 117 | AI38: RE588914 | AJ38: 105.75 | AK38: =AB38 -> 480/70R34 | AL38: RE588915 | AM38: 107.5 | AN38: 445.5 | AO38: 449
B39: Rear | C39: 650/65R42 | D39: 650 | E39: Michelin | F39: Group 47 | G39: 158 | H39: R271828 | I39: 223 | J39: RE175487 | K39: 139 | L39: Not Available | O39: Not Available | P39: NA | Q39: NA | R39: Not Available | S39: NA | T39: NA | U39: 724 | V39: 593 | AB39: 480/70R34 | AC39: =MID(AB39,FIND("/",AB39)-3,3) -> 480 | AD39: Trelleborg | AE39: Group 43 | AF39: 155 | AG39: R567049 | AH39: 132 | AI39: RE588914 | AJ39: 105.75 | AK39: =AB39 -> 480/70R34 | AL39: RE588915 | AM39: 107.5 | AN39: 475.5 | AO39: 479
B40: Rear | C40: 650/85R38 | D40: 650 | E40: Michelin | F40: Group 48 | G40: 173 | H40: R211250 | I40: 341 | J40: RE174770 | K40: 135 | L40: =C40 -> 650/85R38 | M40: RE557609 | N40: 200 | O40: Not Available | P40: NA | Q40: NA | R40: Not Available | S40: NA | T40: NA | U40: 952 | V40: 1229 | AB40: 540/65R34 | AC40: =MID(AB40,FIND("/",AB40)-3,3) -> 540 | AD40: Michelin | AE40: Group 43 | AF40: 145 | AG40: R211246 | AH40: 115 | AI40: RE196210 | AJ40: 118.7 | AK40: Not Available | AL40: NA | AM40: NA | AN40: 467.4
B41: Rear | C41: 650/85R38 | D41: 650 | E41: Trelleborg | F41: Group 48 | G41: 173 | H41: R244256 | I41: 340 | J41: RE174770 | K41: 135 | L41: 650/85R38 | M41: RE557609 | N41: 200 | O41: Not Available | P41: NA | Q41: NA | R41: Not Available | S41: NA | T41: NA | U41: 950 | V41: 1227 | AB41: 600/65R28 | AC41: =MID(AB41,FIND("/",AB41)-3,3) -> 600 | AD41: Michelin | AE41: Group 42 | AF41: 147 | AG41: R151661 | AH41: 164 | AI41: RE219302 | AJ41: 88 | AK41: Not Available | AL41: NA | AM41: NA | AN41: 504
B42: Rear | C42: 650/85R38 | D42: 650 | E42: Mitas | F42: Group 48 | G42: 173 | H42: R310951 | I42: 331 | J42: RE174770 | K42: 135 | L42: 650/85R38 | M42: RE557609 | N42: 200 | O42: Not Available | P42: NA | Q42: NA | R42: Not Available | S42: NA | T42: NA | U42: 932 | V42: 1209 | AB42: 600/65R28 | AC42: =MID(AB42,FIND("/",AB42)-3,3) -> 600 | AD42: Goodyear | AE42: Group 42 | AF42: 147 | AG42: R569953 | AH42: 169 | AI42: RE219302 | AJ42: 88 | AK42: Not Available | AL42: NA | AM42: NA | AN42: 514
B43: Rear | C43: 650/85R38 | D43: 650 | E43: Goodyear | F43: Group 48 | G43: 173 | H43: R227825 | I43: 322 | J43: RE174770 | K43: 135 | L43: 650/85R38 | M43: RE557609 | N43: 200 | O43: Not Available | P43: NA | Q43: NA | R43: Not Available | S43: NA | T43: NA | U43: 914 | V43: 1191 | AB43: 600/65R28 | AC43: =MID(AB43,FIND("/",AB43)-3,3) -> 600 | AD43: Firestone | AE43: Group 42 | AF43: 154 | AG43: L224785 | AH43: 180 | AI43: RE219302 | AJ43: 88 | AK43: Not Available | AL43: NA | AM43: NA | AN43: 536
B44: Rear | C44: IF650/85R38 | D44: 650 | E44: Michelin | F44: Group 48 | G44: 179 | H44: R234776 | I44: 341 | J44: RE249816 | K44: 149.57 | L44: IF650/85R38 | M44: RE275968 | N44: 226.24 | O44: Not Available | P44: NA | Q44: NA | R44: Not Available | S44: NA | T44: NA | U44: 981.14 | V44: 1281.48 | AB44: 600/65R34 | AC44: =MID(AB44,FIND("/",AB44)-3,3) -> 600 | AD44: Trelleborg | AE44: Group 44 | AF44: 157 | AG44: R345486 | AH44: 173 | AI44: RE556739 | AJ44: 144 | AK44: Not Available | AL44: NA | AM44: NA | AN44: 634
B45: Rear | C45: 710/70R38 | D45: 710 | E45: Michelin | F45: Group 47 | G45: 171 | H45: R151662 | I45: 314 | J45: RE174770 | K45: 135 | L45: 710/70R38 | M45: RE557609 | N45: 200 | O45: Not Available | P45: NA | Q45: NA | R45: Not Available | S45: NA | T45: NA | U45: 898 | V45: 1175 | AB45: 600/70R30 | AC45: 600 | AD45: Michelin | AE45: Group 43 | AF45: 152 | AG45: R211245 | AH45: 185 | AI45: RE196207 | AJ45: 109 | AK45: Not Available | AL45: NA | AM45: NA | AN45: 588
B46: Rear | C46: 710/70R38 | D46: 710 | E46: Firestone | F46: Group 47 | G46: 166 | H46: R131230 | I46: 310 | J46: RE174770 | K46: 135 | L46: 710/70R38 | M46: RE557609 | N46: 200 | O46: Not Available | P46: NA | Q46: NA | R46: Not Available | S46: NA | T46: NA | U46: 890 | V46: 1167 | AB46: IF600/70R30 | AC46: 600 | AD46: Michelin | AE46: Group 43 | AF46: 159 | AG46: R248948 | AH46: 185 | AI46: RE196207 | AJ46: 109 | AK46: Not Available | AL46: NA | AM46: NA | AN46: 588
B47: Rear | C47: 710/70R38 | D47: 710 | E47: Goodyear | F47: Group 47 | G47: 166 | H47: R227823 | I47: 305 | J47: RE174770 | K47: 135 | L47: Not Available | O47: Not Available | P47: NA | Q47: NA | R47: Not Available | S47: NA | T47: NA | U47: 880 | V47: 757 | AB47: 600/70R30 | AC47: 600 | AD47: Trelleborg | AE47: Group 43 | AF47: 158 | AG47: R244049 | AH47: 182 | AI47: RE196207 | AJ47: 109 | AK47: Not Available | AL47: NA | AM47: NA | AN47: 582
B48: Rear | C48: 710/70R38 | D48: 710 | E48: Mitas | F48: Group 47 | G48: 169 | H48: R551512 | I48: 306 | J48: RE557689 | K48: 133.71 | L48: Not Available | O48: Not Available | P48: NA | Q48: NA | R48: Not Available | S48: NA | T48: NA | U48: 879.42 | V48: 759 | AB48: 600/70R30 | AC48: 600 | AD48: Mitas | AE48: Group 43 | AF48: 152 | AG48: R310950 | AH48: 172 | AI48: RE196207 | AJ48: 109 | AK48: Not Available | AL48: NA | AM48: NA | AN48: 562
B49: Rear | C49: 710/70R42 | D49: 710 | E49: Michelin | F49: Group 48 | G49: 173 | H49: R211249 | I49: 353 | J49: RE175488 | K49: 152 | L49: =C49 -> 710/70R42 | M49: RE557602 | N49: 240 | O49: Not Available | P49: NA | Q49: NA | R49: Not Available | S49: NA | T49: NA | U49: 1010 | V49: 1333 | AB49: 600/70R30 | AC49: 600 | AD49: Firestone | AE49: Group 43 | AF49: 152 | AG49: R186623 | AH49: 194 | AI49: RE196207 | AJ49: 109 | AK49: Not Available | AL49: NA | AM49: NA | AN49: 606
B50: Rear | C50: 710/70R42 | D50: 710 | E50: Trelleborg | F50: Group 48 | G50: 173 | H50: R244050 | I50: 317 | J50: RE175488 | K50: 152 | L50: 710/70R42 | M50: RE557602 | N50: 240 | O50: Not Available | P50: NA | Q50: NA | R50: Not Available | S50: NA | T50: NA | U50: 938 | V50: 1261 | AB50: IF600/70R30 | AC50: 600 | AD50: Firestone | AE50: Group 43 | AF50: 159 | AG50: R318670 | AH50: 200 | AI50: RE196207 | AJ50: 109 | AK50: Not Available | AL50: NA | AM50: NA | AN50: 618
B51: Rear | C51: 710/70R42 | D51: 710 | E51: Mitas | F51: Group 48 | G51: 173 | H51: R310934 | I51: 347 | J51: RE175488 | K51: 152 | L51: 710/70R42 | M51: RE557602 | N51: 240 | O51: Not Available | P51: NA | Q51: NA | R51: Not Available | S51: NA | T51: NA | U51: 998 | V51: 1321 | AB51: IF600/70R30 | AC51: 600 | AD51: Trelleborg | AE51: Group 43 | AF51: 159 | AG51: R567050 | AH51: 183 | AI51: RE196207 | AJ51: 109 | AK51: Not Available | AL51: NA | AM51: NA | AN51: 584
B52: Rear | C52: 710/70R42 | D52: 710 | E52: Goodyear | F52: Group 48 | G52: 173 | H52: R569951 | I52: 349 | J52: RE175488 | K52: 152 | L52: 710/70R42 | M52: RE557602 | N52: 240 | O52: Not Available | P52: NA | Q52: NA | R52: Not Available | S52: NA | T52: NA | U52: 1002 | V52: 1325 | AB52: 600/70R30 | AC52: 600 | AD52: Goodyear | AE52: Group 43 | AF52: 152 | AG52: R569946 | AH52: 205 | AI52: RE196207 | AJ52: 109 | AK52: Not Available | AL52: NA | AM52: NA | AN52: 628
B53: Rear | C53: 710/70R42 | D53: 710 | E53: Firestone | F53: Group 48 | G53: 168 | H53: L224786 | I53: 331 | J53: RE175488 | K53: 152 | L53: 710/70R42 | M53: RE557602 | N53: 240 | O53: Not Available | P53: NA | Q53: NA | R53: Not Available | S53: NA | T53: NA | U53: 966 | V53: 1289 | AB53: IF620/75R30 | AC53: 620 | AD53: Michelin | AE53: Group 44 | AF53: 164 | AG53: R301870 | AH53: 214 | AI53: RE320695 | AJ53: 125.7 | AK53: Not Available | AL53: x | AM53: x | AN53: 679.4
B54: Rear | C54: 710/75R42 | D54: 710 | E54: Trelleborg | F54: Group 49 | G54: 175 | H54: R538211 | I54: 360 | J54: RE287485 | K54: 175 | L54: 710/75R42 | M54: RE262592 | N54: 264.36 | O54: Not Available | P54: NA | Q54: NA | R54: Not Available | S54: NA | T54: NA | U54: 1070 | V54: 1395.72 | AB54: IF650/60R34 | AC54: 650 | AD54: Michelin | AE54: Group 44 | AF54: 165 | AG54: R345489 | AH54: 216 | AI54: RE345476 | AJ54: 153.86 | AK54: Not Available | AL54: NA | AM54: NA | AN54: 739.72
B55: Rear | C55: 710/75R42 | D55: 710 | E55: Goodyear | F55: Group 49 | G55: 175 | H55: R569948 | I55: 366 | J55: RE287485 | K55: 175 | L55: 710/75R42 | M55: RE262592 | N55: 264.36 | O55: Not Available | P55: NA | Q55: NA | R55: Not Available | S55: NA | T55: NA | U55: 1082 | V55: 1407.72 | AB55: 650/60R34 | AC55: 650 | AD55: Trelleborg | AE55: Group 44 | AF55: 159 | AG55: R345484 | AH55: 205 | AI55: RE556739 | AJ55: 144 | AK55: Not Available | AL55: NA | AM55: NA | AN55: 698
B56: Rear | C56: IF710/70R42 | D56: 710 | E56: Trelleborg | F56: Group 48 | G56: 179 | H56: R567051 | I56: 372.7272727 | J56: RE283141 | K56: 175.05 | L56: IF710/70R42 | M56: RE262592 | N56: 264.36 | O56: Not Available | P56: NA | Q56: NA | R56: Not Available | S56: NA | T56: NA | U56: 1095.554545 | V56: 1421.174545 | AB56: IF650/60R34 | AC56: 650 | AD56: Trelleborg | AE56: Group 44 | AF56: 159 | AG56: R544207 | AH56: 205 | AI56: RE345476 | AJ56: 153.86 | AK56: Not Available | AL56: NA | AM56: NA | AN56: 717.72 | AO56: =IFERROR(((AH56*2)+(AM56*2))+$AC$108,"") -> 
B57: Rear | C57: IF710/70R42 | D57: 710 | E57: Firestone | F57: Group 48 | G57: 179 | H57: R571094 | I57: 339 | J57: RE283141 | K57: 175.05 | L57: IF710/70R42 | M57: RE262592 | N57: 264.36 | O57: Not Available | P57: NA | Q57: NA | R57: Not Available | S57: NA | T57: NA | U57: 1028.1 | V57: 1353.72 | AB57: x | AD57: x | AE57: x | AF57: x | AG57: x | AH57: x | AI57: x | AJ57: x | AK57: x | AL57: x | AM57: x
B58: Rear | C58: IF710/75R42 | D58: 710 | E58: Michelin | F58: Group 49 | G58: 176 | H58: R322686 | I58: 354 | J58: RE287485 | K58: 175 | L58: IF710/75R42 | M58: RE262592 | N58: 264.36 | O58: Not Available | P58: NA | Q58: NA | R58: Not Available | S58: NA | T58: NA | U58: 1058 | V58: 1383.72 | AB58: x | AD58: x | AE58: x | AF58: x | AG58: x | AH58: x | AI58: x | AJ58: x | AK58: x | AL58: x | AM58: x
B59: Rear | C59: IF710/75R42 | D59: 710 | E59: Trelleborg | F59: Group 49 | G59: 176 | H59: R544208 | I59: 385 | J59: RE287485 | K59: 175 | L59: IF710/75R42 | M59: RE262592 | N59: 264.36 | O59: Not Available | P59: NA | Q59: NA | R59: Not Available | S59: NA | T59: NA | U59: 1120 | V59: 1445.72 | AB59: x | AD59: x | AE59: x | AF59: x | AG59: x | AH59: x | AI59: x | AJ59: x | AK59: x | AL59: x | AM59: x
B60: Rear | C60: 800/70R38 | D60: 800 | E60: Michelin | F60: Group 48 | G60: 173 | H60: R211248 | I60: 363 | J60: RE311098 | K60: 153 | L60: 800/70R38 | M60: RE557605 | N60: 215.5 | O60: Not Available | P60: NA | Q60: NA | R60: Not Available | S60: NA | T60: NA | U60: 1032 | V60: 1304 | AB60: x | AC60: =MID(AB60,FIND("/",AB60)-3,3) ->  | AD60: x | AE60: x | AF60: x | AG60: x | AH60: x | AI60: x | AJ60: x | AK60: x | AL60: x | AM60: x | AN60: =IFERROR((AJ60*2)+(AH60*2),"") -> 
B61: Rear | C61: 800/70R38 | D61: 800 | E61: Mitas | F61: Group 48 | G61: 173 | H61: R540554 | I61: 375 | J61: RE311098 | K61: 153 | L61: 800/70R38 | M61: RE557605 | N61: 215.5 | O61: Not Available | P61: NA | Q61: NA | R61: Not Available | S61: NA | T61: NA | U61: 1056 | V61: 1328 | AB61: x | AD61: x | AE61: x | AF61: x | AG61: x | AH61: x | AI61: x | AJ61: x | AK61: x | AL61: x | AM61: x
B62: Rear | C62: 800/70R38 | D62: 800 | E62: Goodyear | F62: Group 48 | G62: 173 | H62: R569947 | I62: 408 | J62: RE311098 | K62: 153 | L62: 800/70R38 | M62: RE557605 | N62: 215.5 | O62: Not Available | P62: NA | Q62: NA | R62: Not Available | S62: NA | T62: NA | U62: 1122 | V62: 1394 | AB62: x | AD62: x | AE62: x | AF62: x | AG62: x | AH62: x | AI62: x | AJ62: x | AK62: x | AL62: x | AM62: x
B63: Rear | C63: 800/70R38 | D63: 800 | E63: Trelleborg | F63: Group 48 | G63: 178 | H63: R569961 | I63: 332 | J63: RE311098 | K63: 153 | L63: 800/70R38 | M63: RE557605 | N63: 215.5 | O63: Not Available | P63: NA | Q63: NA | R63: Not Available | S63: NA | T63: NA | U63: 970 | V63: 1242 | AB63: x | AD63: x | AE63: x | AF63: x | AG63: x | AH63: x | AI63: x | AJ63: x | AK63: x | AL63: x | AM63: x
B64: Rear | C64: 800/70R38 | D64: 800 | E64: Firestone | F64: Group 48 | G64: 173 | H64: R571095 | I64: 411 | J64: RE311098 | K64: 153 | L64: 800/70R38 | M64: RE557605 | N64: 215.5 | O64: Not Available | P64: NA | Q64: NA | R64: Not Available | S64: NA | T64: NA | U64: 1128 | V64: 1400 | AB64: x | AD64: x | AE64: x | AF64: x | AG64: x | AH64: x | AI64: x | AJ64: x | AK64: x | AL64: x | AM64: x
B65: Rear | C65: IF800/70R38 | D65: 800 | E65: Michelin | F65: Group 48 | G65: 179 | H65: R248947 | I65: 400 | J65: RE267759 | K65: 165.52 | L65: IF800/70R38 | M65: RE267760 | N65: 242 | O65: Not Available | P65: NA | Q65: NA | R65: Not Available | S65: NA | T65: NA | U65: 1131.04 | V65: 1431 | AB65: x | AD65: x | AE65: x | AF65: x | AG65: x | AH65: x | AI65: x | AJ65: x | AK65: x | AL65: x | AM65: x
B66: Rear | C66: IF800/70R38 | D66: 800 | E66: Firestone | F66: Group 48 | G66: 179 | H66: R571096 | I66: 422 | J66: RE267759 | K66: 165.52 | L66: IF800/70R38 | M66: RE267760 | N66: 242 | O66: Not Available | P66: NA | Q66: NA | R66: Not Available | S66: NA | T66: NA | U66: 1175.04 | V66: 1475 | AB66: x | AD66: x | AE66: x | AF66: x | AG66: x | AH66: x | AI66: x | AJ66: x | AK66: x | AL66: x | AM66: x
B67: Rear | C67: IF900/60R42 | D67: 900 | E67: Trelleborg | F67: Group 49 | G67: 180 | H67: R544209 | I67: 453 | J67: RE586794 | K67: 287.09 | L67: Not Available | M67: NA | N67: NA | O67: Not Available | P67: NA | Q67: NA | R67: Not Available | S67: NA | T67: NA | U67: 1480.18 | AB67: x | AD67: x | AE67: x | AF67: x | AG67: x | AH67: x | AI67: x | AJ67: x | AK67: x | AL67: x | AM67: x
B68: Rear | C68: IF900/60R42 | D68: 900 | E68: Michelin | F68: Group 49 | G68: 186 | H68: R563361 | I68: 475 | J68: RE586794 | K68: 287.09 | L68: Not Available | M68: NA | N68: NA | O68: Not Available | P68: NA | Q68: NA | R68: Not Available | S68: NA | T68: NA | U68: 1524.18 | AB68: x | AD68: x | AE68: x | AF68: x | AG68: x | AH68: x | AI68: x | AJ68: x | AK68: x | AL68: x | AM68: x
B69: x | C69: x | D69: =MID(C69,FIND("/",C69)-3,3) ->  | E69: x | F69: x | G69: x | H69: x | I69: x | J69: x | K69: x | L69: x | M69: x | N69: x | O69: x | P69: x | Q69: x | R69: x | S69: x | T69: x | U69: x | V69: x | AB69: x | AC69: =MID(AB69,FIND("/",AB69)-3,3) ->  | AD69: x | AE69: x | AF69: x | AG69: x | AH69: x | AI69: x | AJ69: x | AK69: x | AL69: x | AM69: x
B70: x | C70: x | E70: x | F70: x | G70: x | H70: x | I70: x | J70: x | K70: x | L70: x | M70: x | N70: x | O70: x | P70: x | Q70: x | R70: x | S70: x | T70: x | U70: x | V70: x | AB70: x | AD70: x | AE70: x | AF70: x | AG70: x | AH70: x | AI70: x | AJ70: x | AK70: x | AL70: x | AM70: x | AN70: =IFERROR((AJ70*2)+(AH70*2),"") ->  | AO70: =IFERROR(((AH70*2)+(AM70*2))+$AC$108,"") -> 
B71: x | C71: x | E71: x | F71: x | G71: x | H71: x | I71: x | J71: x | K71: x | L71: x | M71: x | N71: x | O71: x | P71: x | Q71: x | R71: x | S71: x | T71: x | U71: x | V71: x | AB71: x | AD71: x | AE71: x | AF71: x | AG71: x | AH71: x | AI71: x | AJ71: x | AK71: x | AL71: x | AM71: x
B72: x | C72: x | E72: x | F72: x | G72: x | H72: x | I72: x | J72: x | K72: x | L72: x | M72: x | N72: x | O72: x | P72: x | Q72: x | R72: x | S72: x | T72: x | U72: x | V72: x | AB72: x | AD72: x | AE72: x | AF72: x | AG72: x | AH72: x | AI72: x | AJ72: x | AK72: x | AL72: x | AM72: x
B73: x | C73: x | E73: x | F73: x | G73: x | H73: x | I73: x | J73: x | K73: x | L73: x | M73: x | N73: x | O73: x | P73: x | Q73: x | R73: x | S73: x | T73: x | U73: x | V73: x | AB73: x | AD73: x | AE73: x | AF73: x | AG73: x | AH73: x | AI73: x | AJ73: x | AK73: x | AL73: x | AM73: x
B74: x | C74: x | E74: x | F74: x | G74: x | H74: x | I74: x | J74: x | K74: x | L74: x | M74: x | N74: x | O74: x | P74: x | Q74: x | R74: x | S74: x | T74: x | U74: x | V74: x | AB74: x | AD74: x | AE74: x | AF74: x | AG74: x | AH74: x | AI74: x | AJ74: x | AK74: x | AL74: x | AM74: x
B75: x | C75: x | E75: x | F75: x | G75: x | H75: x | I75: x | J75: x | K75: x | L75: x | M75: x | N75: x | O75: x | P75: x | Q75: x | R75: x | S75: x | T75: x | U75: x | V75: x | AB75: x | AD75: x | AE75: x | AF75: x | AG75: x | AH75: x | AI75: x | AJ75: x | AK75: x | AL75: x | AM75: x
B76: x | C76: x | E76: x | F76: x | G76: x | H76: x | I76: x | J76: x | K76: x | L76: x | M76: x | N76: x | O76: x | P76: x | Q76: x | R76: x | S76: x | T76: x | U76: x | V76: x | AB76: x | AD76: x | AE76: x | AF76: x | AG76: x | AH76: x | AI76: x | AJ76: x | AK76: x | AL76: x | AM76: x
B77: x | C77: x | E77: x | F77: x | G77: x | H77: x | I77: x | J77: x | K77: x | L77: x | M77: x | N77: x | O77: x | P77: x | Q77: x | R77: x | S77: x | T77: x | U77: x | V77: x | AB77: x | AD77: x | AE77: x | AF77: x | AG77: x | AH77: x | AI77: x | AJ77: x | AK77: x | AL77: x | AM77: x
B78: x | C78: x | E78: x | F78: x | G78: x | H78: x | I78: x | J78: x | K78: x | L78: x | M78: x | N78: x | O78: x | P78: x | Q78: x | R78: x | S78: x | T78: x | U78: x | V78: x | AB78: x | AD78: x | AE78: x | AF78: x | AG78: x | AH78: x | AI78: x | AJ78: x | AK78: x | AL78: x | AM78: x
B79: x | C79: x | E79: x | F79: x | G79: x | H79: x | I79: x | J79: x | K79: x | L79: x | M79: x | N79: x | O79: x | P79: x | Q79: x | R79: x | S79: x | T79: x | U79: x | V79: x | AB79: x | AD79: x | AE79: x | AF79: x | AG79: x | AH79: x | AI79: x | AJ79: x | AK79: x | AL79: x | AM79: x
B80: x | C80: x | E80: x | F80: x | G80: x | H80: x | I80: x | J80: x | K80: x | L80: x | M80: x | N80: x | O80: x | P80: x | Q80: x | R80: x | S80: x | T80: x | U80: x | V80: x | AB80: x | AD80: x | AE80: x | AF80: x | AG80: x | AH80: x | AI80: x | AJ80: x | AK80: x | AL80: x | AM80: x
B81: x | C81: x | E81: x | F81: x | G81: x | H81: x | I81: x | J81: x | K81: x | L81: x | M81: x | N81: x | O81: x | P81: x | Q81: x | R81: x | S81: x | T81: x | U81: x | V81: x | AB81: x | AD81: x | AE81: x | AF81: x | AG81: x | AH81: x | AI81: x | AJ81: x | AK81: x | AL81: x | AM81: x
B82: x | C82: x | E82: x | F82: x | G82: x | H82: x | I82: x | J82: x | K82: x | L82: x | M82: x | N82: x | O82: x | P82: x | Q82: x | R82: x | S82: x | T82: x | U82: x | V82: x | AB82: x | AD82: x | AE82: x | AF82: x | AG82: x | AH82: x | AI82: x | AJ82: x | AK82: x | AL82: x | AM82: x
B83: x | C83: x | E83: x | F83: x | G83: x | H83: x | I83: x | J83: x | K83: x | L83: x | M83: x | N83: x | O83: x | P83: x | Q83: x | R83: x | S83: x | T83: x | U83: x | V83: x | AB83: x | AD83: x | AE83: x | AF83: x | AG83: x | AH83: x | AI83: x | AJ83: x | AK83: x | AL83: x | AM83: x
B84: x | C84: x | E84: x | F84: x | G84: x | H84: x | I84: x | J84: x | K84: x | L84: x | M84: x | N84: x | O84: x | P84: x | Q84: x | R84: x | S84: x | T84: x | U84: x | V84: x | AB84: x | AD84: x | AE84: x | AF84: x | AG84: x | AH84: x | AI84: x | AJ84: x | AK84: x | AL84: x | AM84: x
B85: x | C85: x | E85: x | F85: x | G85: x | H85: x | I85: x | J85: x | K85: x | L85: x | M85: x | N85: x | O85: x | P85: x | Q85: x | R85: x | S85: x | T85: x | U85: x | V85: x | AB85: x | AD85: x | AE85: x | AF85: x | AG85: x | AH85: x | AI85: x | AJ85: x | AK85: x | AL85: x | AM85: x
B86: x | C86: x | E86: x | F86: x | G86: x | H86: x | I86: x | J86: x | K86: x | L86: x | M86: x | N86: x | O86: x | P86: x | Q86: x | R86: x | S86: x | T86: x | U86: x | V86: x | AB86: x | AD86: x | AE86: x | AF86: x | AG86: x | AH86: x | AI86: x | AJ86: x | AK86: x | AL86: x | AM86: x
B87: x | C87: x | E87: x | F87: x | G87: x | H87: x | I87: x | J87: x | K87: x | L87: x | M87: x | N87: x | O87: x | P87: x | Q87: x | R87: x | S87: x | T87: x | U87: x | V87: x | AB87: x | AD87: x | AE87: x | AF87: x | AG87: x | AH87: x | AI87: x | AJ87: x | AK87: x | AL87: x | AM87: x
B88: x | C88: x | E88: x | F88: x | G88: x | H88: x | I88: x | J88: x | K88: x | L88: x | M88: x | N88: x | O88: x | P88: x | Q88: x | R88: x | S88: x | T88: x | U88: x | V88: x | AB88: x | AD88: x | AE88: x | AF88: x | AG88: x | AH88: x | AI88: x | AJ88: x | AK88: x | AL88: x | AM88: x
B89: x | C89: x | E89: x | F89: x | G89: x | H89: x | I89: x | J89: x | K89: x | L89: x | M89: x | N89: x | O89: x | P89: x | Q89: x | R89: x | S89: x | T89: x | U89: x | V89: x | AB89: x | AD89: x | AE89: x | AF89: x | AG89: x | AH89: x | AI89: x | AJ89: x | AK89: x | AL89: x | AM89: x
B90: x | C90: x | E90: x | F90: x | G90: x | H90: x | I90: x | J90: x | K90: x | L90: x | M90: x | N90: x | O90: x | P90: x | Q90: x | R90: x | S90: x | T90: x | U90: x | V90: x | AB90: x | AD90: x | AE90: x | AF90: x | AG90: x | AH90: x | AI90: x | AJ90: x | AK90: x | AL90: x | AM90: x
B91: x | C91: x | E91: x | F91: x | G91: x | H91: x | I91: x | J91: x | K91: x | L91: x | M91: x | N91: x | O91: x | P91: x | Q91: x | R91: x | S91: x | T91: x | U91: x | V91: x | AB91: x | AD91: x | AE91: x | AF91: x | AG91: x | AH91: x | AI91: x | AJ91: x | AK91: x | AL91: x | AM91: x
B92: x | C92: x | E92: x | F92: x | G92: x | H92: x | I92: x | J92: x | K92: x | L92: x | M92: x | N92: x | O92: x | P92: x | Q92: x | R92: x | S92: x | T92: x | U92: x | V92: x | AB92: x | AD92: x | AE92: x | AF92: x | AG92: x | AH92: x | AI92: x | AJ92: x | AK92: x | AL92: x | AM92: x
B93: x | C93: x | E93: x | F93: x | G93: x | H93: x | I93: x | J93: x | K93: x | L93: x | M93: x | N93: x | O93: x | P93: x | Q93: x | R93: x | S93: x | T93: x | U93: x | V93: x | AB93: x | AD93: x | AE93: x | AF93: x | AG93: x | AH93: x | AI93: x | AJ93: x | AK93: x | AL93: x | AM93: x
B94: x | C94: x | E94: x | F94: x | G94: x | H94: x | I94: x | J94: x | K94: x | L94: x | M94: x | N94: x | O94: x | P94: x | Q94: x | R94: x | S94: x | T94: x | U94: x | V94: x | AB94: x | AD94: x | AE94: x | AF94: x | AG94: x | AH94: x | AI94: x | AJ94: x | AK94: x | AL94: x | AM94: x
B95: x | C95: x | E95: x | F95: x | G95: x | H95: x | I95: x | J95: x | K95: x | L95: x | M95: x | N95: x | O95: x | P95: x | Q95: x | R95: x | S95: x | T95: x | U95: x | V95: x | AB95: x | AD95: x | AE95: x | AF95: x | AG95: x | AH95: x | AI95: x | AJ95: x | AK95: x | AL95: x | AM95: x
B96: x | C96: x | E96: x | F96: x | G96: x | H96: x | I96: x | J96: x | K96: x | L96: x | M96: x | N96: x | O96: x | P96: x | Q96: x | R96: x | S96: x | T96: x | U96: x | V96: x | AB96: x | AD96: x | AE96: x | AF96: x | AG96: x | AH96: x | AI96: x | AJ96: x | AK96: x | AL96: x | AM96: x
B97: x | C97: x | E97: x | F97: x | G97: x | H97: x | I97: x | J97: x | K97: x | L97: x | M97: x | N97: x | O97: x | P97: x | Q97: x | R97: x | S97: x | T97: x | U97: x | V97: x | AB97: x | AD97: x | AE97: x | AF97: x | AG97: x | AH97: x | AI97: x | AJ97: x | AK97: x | AL97: x | AM97: x
B98: x | C98: x | E98: x | F98: x | G98: x | H98: x | I98: x | J98: x | K98: x | L98: x | M98: x | N98: x | O98: x | P98: x | Q98: x | R98: x | S98: x | T98: x | U98: x | V98: x | AB98: x | AD98: x | AE98: x | AF98: x | AG98: x | AH98: x | AI98: x | AJ98: x | AK98: x | AL98: x | AM98: x
B99: x | C99: x | E99: x | F99: x | G99: x | H99: x | I99: x | J99: x | K99: x | L99: x | M99: x | N99: x | O99: x | P99: x | Q99: x | R99: x | S99: x | T99: x | U99: x | V99: x | AB99: x | AD99: x | AE99: x | AF99: x | AG99: x | AH99: x | AI99: x | AJ99: x | AK99: x | AL99: x | AM99: x
B101: Hubs | H101: Brand | I101: Grp_R | J101: By Brand | L101: Group | M101: Dual | N101: Triple | P101: load index | Q101: Weight capacity | AB101: Hubs | AG101: Grp_F | AH101: By Brand | AJ101: By Group | AK101: Dual
B102: Dual | H102: Firestone | I102: Group 47 | J102: =IFERROR(INDEX(Wheel_Tire_Data!$C$5:$C$99,SMALL(IF(Wheel_Tire_Data!$E$5:$E$99='Wheels Calculator'!$B$27:$D$27,ROW(Wheel_Tire_Data!C$5:C$99)),ROW(1:1))-4,1),"") -> 320/90R54 | K102: =IFERROR(INDEX(Wheel_Tire_Data!$F$5:$F$99,SMALL(IF(Wheel_Tire_Data!$E$5:$E$99='Wheels Calculator'!$B$27:$D$27,ROW(Wheel_Tire_Data!C$5:C$99)),ROW(1:1))-4,1),"") -> Group 47 | L102: =IFERROR(INDEX($J$102:$J$121,SMALL(IF($K$102:$K$121='Wheels Calculator'!$F$29:$J$29,ROW(Wheel_Tire_Data!$J$102:$J$121)),ROW(1:1))-101,1),"") -> 380/90R54 | P102: 186 | Q102: 9500 | AB102: Dual | AF102: Firestone | AG102: Group 42 | AH102: =IFERROR(INDEX(Wheel_Tire_Data!$AB$5:$AB$99,SMALL(IF(Wheel_Tire_Data!$AD$5:$AD$99='Wheels Calculator'!$B$27:$D$27,ROW(Wheel_Tire_Data!AB$5:AB$99)),ROW(1:1))-4,1),"") -> 380/80R38 | AI102: =IFERROR(INDEX($AE$5:$AE$99,SMALL(IF(Wheel_Tire_Data!$AD$5:$AD$99='Wheels Calculator'!$B$27:$D$27,ROW($AE$5:$AE$99)),ROW(1:1))-4,1),"") -> Group 43 | AJ102: =IFERROR(INDEX($AH$102:$AH$126,SMALL(IF($AI$102:$AI$126='Wheels Calculator'!$B$29:$D$29,ROW(Wheel_Tire_Data!$AH$102:$AH$126)),ROW(1:1))-101,1),"") -> 
B103: Standard hub | D103: 147 | H103: Goodyear | I103: Group 48 | J103: =IFERROR(INDEX(Wheel_Tire_Data!$C$5:$C$99,SMALL(IF(Wheel_Tire_Data!$E$5:$E$99='Wheels Calculator'!$B$27:$D$27,ROW(Wheel_Tire_Data!C$5:C$99)),ROW(2:2))-4,1),"") -> 380/90R50 | K103: =IFERROR(INDEX(Wheel_Tire_Data!$F$5:$F$99,SMALL(IF(Wheel_Tire_Data!$E$5:$E$99='Wheels Calculator'!$B$27:$D$27,ROW(Wheel_Tire_Data!C$5:C$99)),ROW(2:2))-4,1),"") -> Group 47 | L103: =IFERROR(INDEX($J$102:$J$121,SMALL(IF($K$102:$K$121='Wheels Calculator'!$F$29:$J$29,ROW(Wheel_Tire_Data!$J$102:$J$121)),ROW(2:2))-101,1),"") -> 480/80R50 | M103: Not Included | N103: Not Included | P103: 179 | Q103: 7750 | AB103: 1500/ILS <320hp | AC103: ETN21256 | AD103: 272 | AF103: Goodyear | AG103: Group 43 | AH103: =IFERROR(INDEX(Wheel_Tire_Data!$AB$5:$AB$99,SMALL(IF(Wheel_Tire_Data!$AD$5:$AD$99='Wheels Calculator'!$B$27:$D$27,ROW(Wheel_Tire_Data!AB$5:AB$99)),ROW(2:2))-4,1),"") -> IF380/80R38 | AI103: =IFERROR(INDEX($AE$5:$AE$99,SMALL(IF(Wheel_Tire_Data!$AD$5:$AD$99='Wheels Calculator'!$B$27:$D$27,ROW($AE$5:$AE$99)),ROW(2:2))-4,1),"") -> Group 43 | AJ103: =IFERROR(INDEX($AH$102:$AH$126,SMALL(IF($AI$102:$AI$126='Wheels Calculator'!$B$29:$D$29,ROW(Wheel_Tire_Data!$AH$102:$AH$126)),ROW(2:2))-101,1),"") ->  | AK103: Not Included
B104: >800mm tire | C104: ETN174189 | D104: 109 | H104: Mitas | I104: Group 49 | J104: =IFERROR(INDEX(Wheel_Tire_Data!$C$5:$C$99,SMALL(IF(Wheel_Tire_Data!$E$5:$E$99='Wheels Calculator'!$B$27:$D$27,ROW(Wheel_Tire_Data!C$5:C$99)),ROW(3:3))-4,1),"") -> 380/90R54 | K104: =IFERROR(INDEX(Wheel_Tire_Data!$F$5:$F$99,SMALL(IF(Wheel_Tire_Data!$E$5:$E$99='Wheels Calculator'!$B$27:$D$27,ROW(Wheel_Tire_Data!C$5:C$99)),ROW(3:3))-4,1),"") -> Group 48 | L104: =IFERROR(INDEX($J$102:$J$121,SMALL(IF($K$102:$K$121='Wheels Calculator'!$F$29:$J$29,ROW(Wheel_Tire_Data!$J$102:$J$121)),ROW(3:3))-101,1),"") -> IF480/80R50 | M104: =INDEX($L$5:$L$73,MATCH('Wheels Calculator'!$B$27:$D$27&'Wheels Calculator'!$F$31,INDEX(Wheel_Tire_Data!$E$5:$E$73&Wheel_Tire_Data!$C$5:$C$73,),0)) -> 480/80R50 | N104: =_xlfn.IFNA(INDEX($R$5:$R$73,MATCH('Wheels Calculator'!$B$27:$D$27&'Wheels Calculator'!$F$31,INDEX(Wheel_Tire_Data!$E$5:$E$73&$C$5:$C$73,),0)),0) -> 480/80R50 | P104: 176 | Q104: 7100 | AB104: ILS >320 | AC104: ETN21255 | AD104: 362 | AF104: Mitas | AG104: Group 44 | AH104: =IFERROR(INDEX(Wheel_Tire_Data!$AB$5:$AB$99,SMALL(IF(Wheel_Tire_Data!$AD$5:$AD$99='Wheels Calculator'!$B$27:$D$27,ROW(Wheel_Tire_Data!AB$5:AB$99)),ROW(3:3))-4,1),"") -> 380/85R34 | AI104: =IFERROR(INDEX($AE$5:$AE$99,SMALL(IF(Wheel_Tire_Data!$AD$5:$AD$99='Wheels Calculator'!$B$27:$D$27,ROW($AE$5:$AE$99)),ROW(3:3))-4,1),"") -> Group 42 | AJ104: =IFERROR(INDEX($AH$102:$AH$126,SMALL(IF($AI$102:$AI$126='Wheels Calculator'!$B$29:$D$29,ROW(Wheel_Tire_Data!$AH$102:$AH$126)),ROW(3:3))-101,1),"") ->  | AK104: =INDEX($AK$5:$AK$99,MATCH('Wheels Calculator'!$B$27:$D$27&'Wheels Calculator'!$B$31,INDEX(Wheel_Tire_Data!$AD$5:$AD$99&Wheel_Tire_Data!$AB$5:$AB$99,),0)) -> 420/85R34
H105: Trelleborg | J105: =IFERROR(INDEX(Wheel_Tire_Data!$C$5:$C$99,SMALL(IF(Wheel_Tire_Data!$E$5:$E$99='Wheels Calculator'!$B$27:$D$27,ROW(Wheel_Tire_Data!C$5:C$99)),ROW(4:4))-4,1),"") -> 480/80R46 | K105: =IFERROR(INDEX(Wheel_Tire_Data!$F$5:$F$99,SMALL(IF(Wheel_Tire_Data!$E$5:$E$99='Wheels Calculator'!$B$27:$D$27,ROW(Wheel_Tire_Data!C$5:C$99)),ROW(4:4))-4,1),"") -> Group 47 | L105: =IFERROR(INDEX($J$102:$J$121,SMALL(IF($K$102:$K$121='Wheels Calculator'!$F$29:$J$29,ROW(Wheel_Tire_Data!$J$102:$J$121)),ROW(4:4))-101,1),"") -> 520/85R46 | P105: 175 | Q105: 6900 | AF105: Trelleborg | AH105: =IFERROR(INDEX(Wheel_Tire_Data!$AB$5:$AB$99,SMALL(IF(Wheel_Tire_Data!$AD$5:$AD$99='Wheels Calculator'!$B$27:$D$27,ROW(Wheel_Tire_Data!AB$5:AB$99)),ROW(4:4))-4,1),"") -> 380/85R34 | AI105: =IFERROR(INDEX($AE$5:$AE$99,SMALL(IF(Wheel_Tire_Data!$AD$5:$AD$99='Wheels Calculator'!$B$27:$D$27,ROW($AE$5:$AE$99)),ROW(4:4))-4,1),"") -> Group 42 | AJ105: =IFERROR(INDEX($AH$102:$AH$126,SMALL(IF($AI$102:$AI$126='Wheels Calculator'!$B$29:$D$29,ROW(Wheel_Tire_Data!$AH$102:$AH$126)),ROW(4:4))-101,1),"") -> 
B106: Triple | H106: Michelin | J106: =IFERROR(INDEX(Wheel_Tire_Data!$C$5:$C$99,SMALL(IF(Wheel_Tire_Data!$E$5:$E$99='Wheels Calculator'!$B$27:$D$27,ROW(Wheel_Tire_Data!C$5:C$99)),ROW(5:5))-4,1),"") -> 480/80R50 | K106: =IFERROR(INDEX(Wheel_Tire_Data!$F$5:$F$99,SMALL(IF(Wheel_Tire_Data!$E$5:$E$99='Wheels Calculator'!$B$27:$D$27,ROW(Wheel_Tire_Data!C$5:C$99)),ROW(5:5))-4,1),"") -> Group 48 | L106: =IFERROR(INDEX($J$102:$J$121,SMALL(IF($K$102:$K$121='Wheels Calculator'!$F$29:$J$29,ROW(Wheel_Tire_Data!$J$102:$J$121)),ROW(5:5))-101,1),"") -> 620/70R46 | P106: 173 | Q106: 6500 | AF106: Michelin | AH106: =IFERROR(INDEX(Wheel_Tire_Data!$AB$5:$AB$99,SMALL(IF(Wheel_Tire_Data!$AD$5:$AD$99='Wheels Calculator'!$B$27:$D$27,ROW(Wheel_Tire_Data!AB$5:AB$99)),ROW(5:5))-4,1),"") -> 420/85R34 | AI106: =IFERROR(INDEX($AE$5:$AE$99,SMALL(IF(Wheel_Tire_Data!$AD$5:$AD$99='Wheels Calculator'!$B$27:$D$27,ROW($AE$5:$AE$99)),ROW(5:5))-4,1),"") -> Group 43 | AJ106: =IFERROR(INDEX($AH$102:$AH$126,SMALL(IF($AI$102:$AI$126='Wheels Calculator'!$B$29:$D$29,ROW(Wheel_Tire_Data!$AH$102:$AH$126)),ROW(5:5))-101,1),"") -> 
B107: DT 300-419 | C107: ETN174297 | D107: 279.4 | J107: =IFERROR(INDEX(Wheel_Tire_Data!$C$5:$C$99,SMALL(IF(Wheel_Tire_Data!$E$5:$E$99='Wheels Calculator'!$B$27:$D$27,ROW(Wheel_Tire_Data!C$5:C$99)),ROW(6:6))-4,1),"") -> IF480/80R50 | K107: =IFERROR(INDEX(Wheel_Tire_Data!$F$5:$F$99,SMALL(IF(Wheel_Tire_Data!$E$5:$E$99='Wheels Calculator'!$B$27:$D$27,ROW(Wheel_Tire_Data!C$5:C$99)),ROW(6:6))-4,1),"") -> Group 48 | L107: =IFERROR(INDEX($J$102:$J$121,SMALL(IF($K$102:$K$121='Wheels Calculator'!$F$29:$J$29,ROW(Wheel_Tire_Data!$J$102:$J$121)),ROW(6:6))-101,1),"") -> 710/70R42 | P107: 171 | Q107: 6150 | AB107: Chosen Axle | AC107: ='Wheels Calculator'!H9 -> 1300 MFWD | AH107: =IFERROR(INDEX(Wheel_Tire_Data!$AB$5:$AB$99,SMALL(IF(Wheel_Tire_Data!$AD$5:$AD$99='Wheels Calculator'!$B$27:$D$27,ROW(Wheel_Tire_Data!AB$5:AB$99)),ROW(6:6))-4,1),"") -> IF420/85R34 | AI107: =IFERROR(INDEX($AE$5:$AE$99,SMALL(IF(Wheel_Tire_Data!$AD$5:$AD$99='Wheels Calculator'!$B$27:$D$27,ROW($AE$5:$AE$99)),ROW(6:6))-4,1),"") -> Group 43 | AJ107: =IFERROR(INDEX($AH$102:$AH$126,SMALL(IF($AI$102:$AI$126='Wheels Calculator'!$B$29:$D$29,ROW(Wheel_Tire_Data!$AH$102:$AH$126)),ROW(6:6))-101,1),"") -> 
B108: DT 420-519 | C108: ETN174203 | D108: 384.7 | J108: =IFERROR(INDEX(Wheel_Tire_Data!$C$5:$C$99,SMALL(IF(Wheel_Tire_Data!$E$5:$E$99='Wheels Calculator'!$B$27:$D$27,ROW(Wheel_Tire_Data!C$5:C$99)),ROW(7:7))-4,1),"") -> IF480/95R50 | K108: =IFERROR(INDEX(Wheel_Tire_Data!$F$5:$F$99,SMALL(IF(Wheel_Tire_Data!$E$5:$E$99='Wheels Calculator'!$B$27:$D$27,ROW(Wheel_Tire_Data!C$5:C$99)),ROW(7:7))-4,1),"") -> Group 49 | L108: =IFERROR(INDEX($J$102:$J$121,SMALL(IF($K$102:$K$121='Wheels Calculator'!$F$29:$J$29,ROW(Wheel_Tire_Data!$J$102:$J$121)),ROW(7:7))-101,1),"") -> IF710/70R42 | P108: 170 | Q108: 6000 | AB108: Extension weight | AC108: =_xlfn.IFNA(_xlfn.IFS(OR($AC$107='Weight Variables - Wheels'!$E$5,$AC$107='Weight Variables - Wheels'!$E$6),Wheel_Tire_Data!$AD$103,Wheel_Tire_Data!$AC$107='Weight Variables - Wheels'!$E$7,Wheel_Tire_Data!$AD$104),0) -> 0 | AH108: =IFERROR(INDEX(Wheel_Tire_Data!$AB$5:$AB$99,SMALL(IF(Wheel_Tire_Data!$AD$5:$AD$99='Wheels Calculator'!$B$27:$D$27,ROW(Wheel_Tire_Data!AB$5:AB$99)),ROW(7:7))-4,1),"") -> 420/90R30 | AI108: =IFERROR(INDEX($AE$5:$AE$99,SMALL(IF(Wheel_Tire_Data!$AD$5:$AD$99='Wheels Calculator'!$B$27:$D$27,ROW($AE$5:$AE$99)),ROW(7:7))-4,1),"") -> Group 42 | AJ108: =IFERROR(INDEX($AH$102:$AH$126,SMALL(IF($AI$102:$AI$126='Wheels Calculator'!$B$29:$D$29,ROW(Wheel_Tire_Data!$AH$102:$AH$126)),ROW(7:7))-101,1),"") -> 
B109: DF 300-419 | C109: NA | D109: 0 | J109: =IFERROR(INDEX(Wheel_Tire_Data!$C$5:$C$99,SMALL(IF(Wheel_Tire_Data!$E$5:$E$99='Wheels Calculator'!$B$27:$D$27,ROW(Wheel_Tire_Data!C$5:C$99)),ROW(8:8))-4,1),"") -> 520/85R42 | K109: =IFERROR(INDEX(Wheel_Tire_Data!$F$5:$F$99,SMALL(IF(Wheel_Tire_Data!$E$5:$E$99='Wheels Calculator'!$B$27:$D$27,ROW(Wheel_Tire_Data!C$5:C$99)),ROW(8:8))-4,1),"") -> Group 47 | L109: =IFERROR(INDEX($J$102:$J$121,SMALL(IF($K$102:$K$121='Wheels Calculator'!$F$29:$J$29,ROW(Wheel_Tire_Data!$J$102:$J$121)),ROW(8:8))-101,1),"") -> 800/70R38 | P109: 169 | Q109: 5800 | AH109: =IFERROR(INDEX(Wheel_Tire_Data!$AB$5:$AB$99,SMALL(IF(Wheel_Tire_Data!$AD$5:$AD$99='Wheels Calculator'!$B$27:$D$27,ROW(Wheel_Tire_Data!AB$5:AB$99)),ROW(8:8))-4,1),"") -> 480/70R30 | AI109: =IFERROR(INDEX($AE$5:$AE$99,SMALL(IF(Wheel_Tire_Data!$AD$5:$AD$99='Wheels Calculator'!$B$27:$D$27,ROW($AE$5:$AE$99)),ROW(8:8))-4,1),"") -> Group 42 | AJ109: =IFERROR(INDEX($AH$102:$AH$126,SMALL(IF($AI$102:$AI$126='Wheels Calculator'!$B$29:$D$29,ROW(Wheel_Tire_Data!$AH$102:$AH$126)),ROW(8:8))-101,1),"") -> 
B110: DF 420-519 | C110: ETN174205 | D110: 269.4 | J110: =IFERROR(INDEX(Wheel_Tire_Data!$C$5:$C$99,SMALL(IF(Wheel_Tire_Data!$E$5:$E$99='Wheels Calculator'!$B$27:$D$27,ROW(Wheel_Tire_Data!C$5:C$99)),ROW(9:9))-4,1),"") -> 520/85R46 | K110: =IFERROR(INDEX(Wheel_Tire_Data!$F$5:$F$99,SMALL(IF(Wheel_Tire_Data!$E$5:$E$99='Wheels Calculator'!$B$27:$D$27,ROW(Wheel_Tire_Data!C$5:C$99)),ROW(9:9))-4,1),"") -> Group 48 | L110: =IFERROR(INDEX($J$102:$J$121,SMALL(IF($K$102:$K$121='Wheels Calculator'!$F$29:$J$29,ROW(Wheel_Tire_Data!$J$102:$J$121)),ROW(9:9))-101,1),"") -> IF800/70R38 | P110: 168 | Q110: 5600 | AH110: =IFERROR(INDEX(Wheel_Tire_Data!$AB$5:$AB$99,SMALL(IF(Wheel_Tire_Data!$AD$5:$AD$99='Wheels Calculator'!$B$27:$D$27,ROW(Wheel_Tire_Data!AB$5:AB$99)),ROW(9:9))-4,1),"") -> 480/70R34 | AI110: =IFERROR(INDEX($AE$5:$AE$99,SMALL(IF(Wheel_Tire_Data!$AD$5:$AD$99='Wheels Calculator'!$B$27:$D$27,ROW($AE$5:$AE$99)),ROW(9:9))-4,1),"") -> Group 43 | AJ110: =IFERROR(INDEX($AH$102:$AH$126,SMALL(IF($AI$102:$AI$126='Wheels Calculator'!$B$29:$D$29,ROW(Wheel_Tire_Data!$AH$102:$AH$126)),ROW(9:9))-101,1),"") -> 
J111: =IFERROR(INDEX(Wheel_Tire_Data!$C$5:$C$99,SMALL(IF(Wheel_Tire_Data!$E$5:$E$99='Wheels Calculator'!$B$27:$D$27,ROW(Wheel_Tire_Data!C$5:C$99)),ROW(10:10))-4,1),"") -> 620/70R42 | K111: =IFERROR(INDEX(Wheel_Tire_Data!$F$5:$F$99,SMALL(IF(Wheel_Tire_Data!$E$5:$E$99='Wheels Calculator'!$B$27:$D$27,ROW(Wheel_Tire_Data!C$5:C$99)),ROW(10:10))-4,1),"") -> Group 47 | L111: =IFERROR(INDEX($J$102:$J$121,SMALL(IF($K$102:$K$121='Wheels Calculator'!$F$29:$J$29,ROW(Wheel_Tire_Data!$J$102:$J$121)),ROW(10:10))-100,1),"") ->  | P111: 167 | Q111: 5450 | AH111: =IFERROR(INDEX(Wheel_Tire_Data!$AB$5:$AB$99,SMALL(IF(Wheel_Tire_Data!$AD$5:$AD$99='Wheels Calculator'!$B$27:$D$27,ROW(Wheel_Tire_Data!AB$5:AB$99)),ROW(10:10))-4,1),"") -> 600/65R28 | AI111: =IFERROR(INDEX($AE$5:$AE$99,SMALL(IF(Wheel_Tire_Data!$AD$5:$AD$99='Wheels Calculator'!$B$27:$D$27,ROW($AE$5:$AE$99)),ROW(10:10))-4,1),"") -> Group 42 | AJ111: =IFERROR(INDEX($AH$102:$AH$126,SMALL(IF($AI$102:$AI$126='Wheels Calculator'!$B$29:$D$29,ROW(Wheel_Tire_Data!$AH$102:$AH$126)),ROW(10:10))-100,1),"") -> 
B112: Chosen Size | C112: =_xlfn.IFNA(INDEX(Wheel_Tire_Data!$C$5:$C$73,MATCH('Wheels Calculator'!$B$27:$D$27&'Wheels Calculator'!$F$31,INDEX(Wheel_Tire_Data!$E$5:$E$73&Wheel_Tire_Data!$C$5:$C$73,),0)),0) -> 480/80R50 | J112: =IFERROR(INDEX(Wheel_Tire_Data!$C$5:$C$99,SMALL(IF(Wheel_Tire_Data!$E$5:$E$99='Wheels Calculator'!$B$27:$D$27,ROW(Wheel_Tire_Data!C$5:C$99)),ROW(11:11))-4,1),"") -> 620/70R46 | K112: =IFERROR(INDEX(Wheel_Tire_Data!$F$5:$F$99,SMALL(IF(Wheel_Tire_Data!$E$5:$E$99='Wheels Calculator'!$B$27:$D$27,ROW(Wheel_Tire_Data!C$5:C$99)),ROW(11:11))-4,1),"") -> Group 48 | L112: =IFERROR(INDEX($J$102:$J$121,SMALL(IF($K$102:$K$121='Wheels Calculator'!$F$29:$J$29,ROW(Wheel_Tire_Data!$J$102:$J$121)),ROW(11:11))-100,1),"") ->  | P112: 166 | Q112: 5300 | AH112: =IFERROR(INDEX(Wheel_Tire_Data!$AB$5:$AB$99,SMALL(IF(Wheel_Tire_Data!$AD$5:$AD$99='Wheels Calculator'!$B$27:$D$27,ROW(Wheel_Tire_Data!AB$5:AB$99)),ROW(11:11))-4,1),"") -> 600/70R30 | AI112: =IFERROR(INDEX($AE$5:$AE$99,SMALL(IF(Wheel_Tire_Data!$AD$5:$AD$99='Wheels Calculator'!$B$27:$D$27,ROW($AE$5:$AE$99)),ROW(11:11))-4,1),"") -> Group 43 | AJ112: =IFERROR(INDEX($AH$102:$AH$126,SMALL(IF($AI$102:$AI$126='Wheels Calculator'!$B$29:$D$29,ROW(Wheel_Tire_Data!$AH$102:$AH$126)),ROW(11:11))-100,1),"") -> 
B113: section Width | C113: =MID(C112,FIND("/",C112)-3,3) -> 480 | D113: =C113-0 -> 480 | J113: =IFERROR(INDEX(Wheel_Tire_Data!$C$5:$C$99,SMALL(IF(Wheel_Tire_Data!$E$5:$E$99='Wheels Calculator'!$B$27:$D$27,ROW(Wheel_Tire_Data!C$5:C$99)),ROW(12:12))-4,1),"") -> 710/70R38 | K113: =IFERROR(INDEX(Wheel_Tire_Data!$F$5:$F$99,SMALL(IF(Wheel_Tire_Data!$E$5:$E$99='Wheels Calculator'!$B$27:$D$27,ROW(Wheel_Tire_Data!C$5:C$99)),ROW(12:12))-4,1),"") -> Group 47 | L113: =IFERROR(INDEX($J$102:$J$121,SMALL(IF($K$102:$K$121='Wheels Calculator'!$F$29:$J$29,ROW(Wheel_Tire_Data!$J$102:$J$121)),ROW(12:12))-100,1),"") ->  | P113: 165 | Q113: 5150 | AH113: =IFERROR(INDEX(Wheel_Tire_Data!$AB$5:$AB$99,SMALL(IF(Wheel_Tire_Data!$AD$5:$AD$99='Wheels Calculator'!$B$27:$D$27,ROW(Wheel_Tire_Data!AB$5:AB$99)),ROW(12:12))-4,1),"") -> IF600/70R30 | AI113: =IFERROR(INDEX($AE$5:$AE$99,SMALL(IF(Wheel_Tire_Data!$AD$5:$AD$99='Wheels Calculator'!$B$27:$D$27,ROW($AE$5:$AE$99)),ROW(12:12))-4,1),"") -> Group 43 | AJ113: =IFERROR(INDEX($AH$102:$AH$126,SMALL(IF($AI$102:$AI$126='Wheels Calculator'!$B$29:$D$29,ROW(Wheel_Tire_Data!$AH$102:$AH$126)),ROW(12:12))-100,1),"") -> 
B114: Chosen Axle | C114: ='Wheels Calculator'!J9 -> 120mm x 3012mm (Double Taper) | J114: =IFERROR(INDEX(Wheel_Tire_Data!$C$5:$C$99,SMALL(IF(Wheel_Tire_Data!$E$5:$E$99='Wheels Calculator'!$B$27:$D$27,ROW(Wheel_Tire_Data!C$5:C$99)),ROW(13:13))-4,1),"") -> 710/70R42 | K114: =IFERROR(INDEX(Wheel_Tire_Data!$F$5:$F$99,SMALL(IF(Wheel_Tire_Data!$E$5:$E$99='Wheels Calculator'!$B$27:$D$27,ROW(Wheel_Tire_Data!C$5:C$99)),ROW(13:13))-4,1),"") -> Group 48 | L114: =IFERROR(INDEX($J$102:$J$121,SMALL(IF($K$102:$K$121='Wheels Calculator'!$F$29:$J$29,ROW(Wheel_Tire_Data!$J$102:$J$121)),ROW(13:13))-100,1),"") ->  | P114: 164 | Q114: 5000 | AH114: =IFERROR(INDEX(Wheel_Tire_Data!$AB$5:$AB$99,SMALL(IF(Wheel_Tire_Data!$AD$5:$AD$99='Wheels Calculator'!$B$27:$D$27,ROW(Wheel_Tire_Data!AB$5:AB$99)),ROW(13:13))-4,1),"") ->  | AI114: =IFERROR(INDEX($AE$5:$AE$99,SMALL(IF(Wheel_Tire_Data!$AD$5:$AD$99='Wheels Calculator'!$B$27:$D$27,ROW($AE$5:$AE$99)),ROW(13:13))-4,1),"") ->  | AJ114: =IFERROR(INDEX($AH$102:$AH$126,SMALL(IF($AI$102:$AI$126='Wheels Calculator'!$B$29:$D$29,ROW(Wheel_Tire_Data!$AH$102:$AH$126)),ROW(13:13))-100,1),"") -> 
B115: Hub Weight | C115: =_xlfn.IFNA(_xlfn.IFS(AND(OR($C$114='Weight Variables - Wheels'!F4,Wheel_Tire_Data!$C$114='Weight Variables - Wheels'!F5,Wheel_Tire_Data!$C$114='Weight Variables - Wheels'!F6,Wheel_Tire_Data!$C$114='Weight Variables - Wheels'!F8),Wheel_Tire_Data!$D$113>419,Wheel_Tire_Data!$D$113<519),Wheel_Tire_Data!$D$108,AND(OR($C$114='Weight Variables - Wheels'!F4,Wheel_Tire_Data!$C$114='Weight Variables - Wheels'!F5,Wheel_Tire_Data!$C$114='Weight Variables - Wheels'!F6,Wheel_Tire_Data!$C$114='Weight Variables - Wheels'!F8),Wheel_Tire_Data!$D$113>300,Wheel_Tire_Data!$D$113<419),$D$107,AND(OR($C$114='Weight Variables - Wheels'!F7,Wheel_Tire_Data!$C$114='Weight Variables - Wheels'!F9),Wheel_Tire_Data!$D$113>419,Wheel_Tire_Data!$D$113<519),$D$110),0) -> 384.7 | J115: =IFERROR(INDEX(Wheel_Tire_Data!$C$5:$C$99,SMALL(IF(Wheel_Tire_Data!$E$5:$E$99='Wheels Calculator'!$B$27:$D$27,ROW(Wheel_Tire_Data!C$5:C$99)),ROW(14:14))-4,1),"") -> IF710/70R42 | K115: =IFERROR(INDEX(Wheel_Tire_Data!$F$5:$F$99,SMALL(IF(Wheel_Tire_Data!$E$5:$E$99='Wheels Calculator'!$B$27:$D$27,ROW(Wheel_Tire_Data!C$5:C$99)),ROW(14:14))-4,1),"") -> Group 48 | L115: =IFERROR(INDEX($J$102:$J$121,SMALL(IF($K$102:$K$121='Wheels Calculator'!$F$29:$J$29,ROW(Wheel_Tire_Data!$J$102:$J$121)),ROW(14:14))-100,1),"") ->  | P115: 163 | Q115: 4875 | AH115: =IFERROR(INDEX(Wheel_Tire_Data!$AB$5:$AB$99,SMALL(IF(Wheel_Tire_Data!$AD$5:$AD$99='Wheels Calculator'!$B$27:$D$27,ROW(Wheel_Tire_Data!AB$5:AB$99)),ROW(14:14))-4,1),"") ->  | AI115: =IFERROR(INDEX($AE$5:$AE$99,SMALL(IF(Wheel_Tire_Data!$AD$5:$AD$99='Wheels Calculator'!$B$27:$D$27,ROW($AE$5:$AE$99)),ROW(14:14))-4,1),"") ->  | AJ115: =IFERROR(INDEX($AH$102:$AH$126,SMALL(IF($AI$102:$AI$126='Wheels Calculator'!$B$29:$D$29,ROW(Wheel_Tire_Data!$AH$102:$AH$126)),ROW(14:14))-100,1),"") -> 
J116: =IFERROR(INDEX(Wheel_Tire_Data!$C$5:$C$99,SMALL(IF(Wheel_Tire_Data!$E$5:$E$99='Wheels Calculator'!$B$27:$D$27,ROW(Wheel_Tire_Data!C$5:C$99)),ROW(15:15))-4,1),"") -> 800/70R38 | K116: =IFERROR(INDEX(Wheel_Tire_Data!$F$5:$F$99,SMALL(IF(Wheel_Tire_Data!$E$5:$E$99='Wheels Calculator'!$B$27:$D$27,ROW(Wheel_Tire_Data!C$5:C$99)),ROW(15:15))-4,1),"") -> Group 48 | L116: =IFERROR(INDEX($J$102:$J$121,SMALL(IF($K$102:$K$121='Wheels Calculator'!$F$29:$J$29,ROW(Wheel_Tire_Data!$J$102:$J$121)),ROW(15:15))-100,1),"") ->  | P116: 162 | Q116: 4750 | AH116: =IFERROR(INDEX(Wheel_Tire_Data!$AB$5:$AB$99,SMALL(IF(Wheel_Tire_Data!$AD$5:$AD$99='Wheels Calculator'!$B$27:$D$27,ROW(Wheel_Tire_Data!AB$5:AB$99)),ROW(15:15))-4,1),"") ->  | AI116: =IFERROR(INDEX($AE$5:$AE$99,SMALL(IF(Wheel_Tire_Data!$AD$5:$AD$99='Wheels Calculator'!$B$27:$D$27,ROW($AE$5:$AE$99)),ROW(15:15))-4,1),"") ->  | AJ116: =IFERROR(INDEX($AH$102:$AH$126,SMALL(IF($AI$102:$AI$126='Wheels Calculator'!$B$29:$D$29,ROW(Wheel_Tire_Data!$AH$102:$AH$126)),ROW(15:15))-100,1),"") -> 
J117: =IFERROR(INDEX(Wheel_Tire_Data!$C$5:$C$99,SMALL(IF(Wheel_Tire_Data!$E$5:$E$99='Wheels Calculator'!$B$27:$D$27,ROW(Wheel_Tire_Data!C$5:C$99)),ROW(16:16))-4,1),"") -> IF800/70R38 | K117: =IFERROR(INDEX(Wheel_Tire_Data!$F$5:$F$99,SMALL(IF(Wheel_Tire_Data!$E$5:$E$99='Wheels Calculator'!$B$27:$D$27,ROW(Wheel_Tire_Data!C$5:C$99)),ROW(16:16))-4,1),"") -> Group 48 | L117: =IFERROR(INDEX($J$102:$J$121,SMALL(IF($K$102:$K$121='Wheels Calculator'!$F$29:$J$29,ROW(Wheel_Tire_Data!$J$102:$J$121)),ROW(16:16))-100,1),"") ->  | P117: 160 | Q117: 4500 | AH117: =IFERROR(INDEX(Wheel_Tire_Data!$AB$5:$AB$99,SMALL(IF(Wheel_Tire_Data!$AD$5:$AD$99='Wheels Calculator'!$B$27:$D$27,ROW(Wheel_Tire_Data!AB$5:AB$99)),ROW(16:16))-4,1),"") ->  | AI117: =IFERROR(INDEX($AE$5:$AE$99,SMALL(IF(Wheel_Tire_Data!$AD$5:$AD$99='Wheels Calculator'!$B$27:$D$27,ROW($AE$5:$AE$99)),ROW(16:16))-4,1),"") ->  | AJ117: =IFERROR(INDEX($AH$102:$AH$126,SMALL(IF($AI$102:$AI$126='Wheels Calculator'!$B$29:$D$29,ROW(Wheel_Tire_Data!$AH$102:$AH$126)),ROW(16:16))-100,1),"") -> 
J118: =IFERROR(INDEX(Wheel_Tire_Data!$C$5:$C$99,SMALL(IF(Wheel_Tire_Data!$E$5:$E$99='Wheels Calculator'!$B$27:$D$27,ROW(Wheel_Tire_Data!C$5:C$99)),ROW(17:17))-4,1),"") ->  | K118: =IFERROR(INDEX(Wheel_Tire_Data!$F$5:$F$99,SMALL(IF(Wheel_Tire_Data!$E$5:$E$99='Wheels Calculator'!$B$27:$D$27,ROW(Wheel_Tire_Data!C$5:C$99)),ROW(17:17))-4,1),"") ->  | L118: =IFERROR(INDEX($J$102:$J$121,SMALL(IF($K$102:$K$121='Wheels Calculator'!$F$29:$J$29,ROW(Wheel_Tire_Data!$J$102:$J$121)),ROW(17:17))-100,1),"") ->  | P118: 159 | Q118: 4375 | AH118: =IFERROR(INDEX(Wheel_Tire_Data!$AB$5:$AB$99,SMALL(IF(Wheel_Tire_Data!$AD$5:$AD$99='Wheels Calculator'!$B$27:$D$27,ROW(Wheel_Tire_Data!AB$5:AB$99)),ROW(17:17))-4,1),"") ->  | AI118: =IFERROR(INDEX($AE$5:$AE$99,SMALL(IF(Wheel_Tire_Data!$AD$5:$AD$99='Wheels Calculator'!$B$27:$D$27,ROW($AE$5:$AE$99)),ROW(17:17))-4,1),"") ->  | AJ118: =IFERROR(INDEX($AH$102:$AH$126,SMALL(IF($AI$102:$AI$126='Wheels Calculator'!$B$29:$D$29,ROW(Wheel_Tire_Data!$AH$102:$AH$126)),ROW(17:17))-100,1),"") -> 
J119: =IFERROR(INDEX(Wheel_Tire_Data!$C$5:$C$99,SMALL(IF(Wheel_Tire_Data!$E$5:$E$99='Wheels Calculator'!$B$27:$D$27,ROW(Wheel_Tire_Data!C$5:C$99)),ROW(18:18))-4,1),"") ->  | K119: =IFERROR(INDEX(Wheel_Tire_Data!$F$5:$F$99,SMALL(IF(Wheel_Tire_Data!$E$5:$E$99='Wheels Calculator'!$B$27:$D$27,ROW(Wheel_Tire_Data!C$5:C$99)),ROW(18:18))-4,1),"") ->  | L119: =IFERROR(INDEX($J$102:$J$121,SMALL(IF($K$102:$K$121='Wheels Calculator'!$F$29:$J$29,ROW(Wheel_Tire_Data!$J$102:$J$121)),ROW(18:18))-100,1),"") ->  | P119: 158 | Q119: 4250 | AH119: =IFERROR(INDEX(Wheel_Tire_Data!$AB$5:$AB$99,SMALL(IF(Wheel_Tire_Data!$AD$5:$AD$99='Wheels Calculator'!$B$27:$D$27,ROW(Wheel_Tire_Data!AB$5:AB$99)),ROW(18:18))-4,1),"") ->  | AI119: =IFERROR(INDEX($AE$5:$AE$99,SMALL(IF(Wheel_Tire_Data!$AD$5:$AD$99='Wheels Calculator'!$B$27:$D$27,ROW($AE$5:$AE$99)),ROW(18:18))-4,1),"") ->  | AJ119: =IFERROR(INDEX($AH$102:$AH$126,SMALL(IF($AI$102:$AI$126='Wheels Calculator'!$B$29:$D$29,ROW(Wheel_Tire_Data!$AH$102:$AH$126)),ROW(18:18))-100,1),"") -> 
J120: =IFERROR(INDEX(Wheel_Tire_Data!$C$5:$C$99,SMALL(IF(Wheel_Tire_Data!$E$5:$E$99='Wheels Calculator'!$B$27:$D$27,ROW(Wheel_Tire_Data!C$5:C$99)),ROW(19:19))-4,1),"") ->  | K120: =IFERROR(INDEX(Wheel_Tire_Data!$F$5:$F$99,SMALL(IF(Wheel_Tire_Data!$E$5:$E$99='Wheels Calculator'!$B$27:$D$27,ROW(Wheel_Tire_Data!C$5:C$99)),ROW(19:19))-4,1),"") ->  | L120: =IFERROR(INDEX($J$102:$J$121,SMALL(IF($K$102:$K$121='Wheels Calculator'!$F$29:$J$29,ROW(Wheel_Tire_Data!$J$102:$J$121)),ROW(19:19))-100,1),"") ->  | P120: 157 | Q120: 4125 | AH120: =IFERROR(INDEX(Wheel_Tire_Data!$AB$5:$AB$99,SMALL(IF(Wheel_Tire_Data!$AD$5:$AD$99='Wheels Calculator'!$B$27:$D$27,ROW(Wheel_Tire_Data!AB$5:AB$99)),ROW(19:19))-4,1),"") ->  | AI120: =IFERROR(INDEX($AE$5:$AE$99,SMALL(IF(Wheel_Tire_Data!$AD$5:$AD$99='Wheels Calculator'!$B$27:$D$27,ROW($AE$5:$AE$99)),ROW(19:19))-4,1),"") ->  | AJ120: =IFERROR(INDEX($AH$102:$AH$126,SMALL(IF($AI$102:$AI$126='Wheels Calculator'!$B$29:$D$29,ROW(Wheel_Tire_Data!$AH$102:$AH$126)),ROW(19:19))-100,1),"") -> 
J121: =IFERROR(INDEX(Wheel_Tire_Data!$C$5:$C$99,SMALL(IF(Wheel_Tire_Data!$E$5:$E$99='Wheels Calculator'!$B$27:$D$27,ROW(Wheel_Tire_Data!C$5:C$99)),ROW(20:20))-4,1),"") ->  | K121: =IFERROR(INDEX(Wheel_Tire_Data!$F$5:$F$99,SMALL(IF(Wheel_Tire_Data!$E$5:$E$99='Wheels Calculator'!$B$27:$D$27,ROW(Wheel_Tire_Data!C$5:C$99)),ROW(20:20))-4,1),"") ->  | L121: =IFERROR(INDEX($J$102:$J$121,SMALL(IF($K$102:$K$121='Wheels Calculator'!$F$29:$J$29,ROW(Wheel_Tire_Data!$J$102:$J$121)),ROW(20:20))-100,1),"") ->  | P121: 155 | Q121: 3875 | AH121: =IFERROR(INDEX(Wheel_Tire_Data!$AB$5:$AB$99,SMALL(IF(Wheel_Tire_Data!$AD$5:$AD$99='Wheels Calculator'!$B$27:$D$27,ROW(Wheel_Tire_Data!AB$5:AB$99)),ROW(20:20))-4,1),"") ->  | AI121: =IFERROR(INDEX($AE$5:$AE$99,SMALL(IF(Wheel_Tire_Data!$AD$5:$AD$99='Wheels Calculator'!$B$27:$D$27,ROW($AE$5:$AE$99)),ROW(20:20))-4,1),"") ->  | AJ121: =IFERROR(INDEX($AH$102:$AH$126,SMALL(IF($AI$102:$AI$126='Wheels Calculator'!$B$29:$D$29,ROW(Wheel_Tire_Data!$AH$102:$AH$126)),ROW(20:20))-100,1),"") -> 
P122: 154 | Q122: 3750 | AH122: =IFERROR(INDEX(Wheel_Tire_Data!$AB$5:$AB$99,SMALL(IF(Wheel_Tire_Data!$AD$5:$AD$99='Wheels Calculator'!$B$27:$D$27,ROW(Wheel_Tire_Data!AB$5:AB$99)),ROW(21:21))-4,1),"") ->  | AI122: =IFERROR(INDEX($AE$5:$AE$99,SMALL(IF(Wheel_Tire_Data!$AD$5:$AD$99='Wheels Calculator'!$B$27:$D$27,ROW($AE$5:$AE$99)),ROW(21:21))-4,1),"") ->  | AJ122: =IFERROR(INDEX($AH$102:$AH$126,SMALL(IF($AI$102:$AI$126='Wheels Calculator'!$B$29:$D$29,ROW(Wheel_Tire_Data!$AH$102:$AH$126)),ROW(21:21))-100,1),"") -> 
P123: 152 | Q123: 3550 | AH123: =IFERROR(INDEX(Wheel_Tire_Data!$AB$5:$AB$99,SMALL(IF(Wheel_Tire_Data!$AD$5:$AD$99='Wheels Calculator'!$B$27:$D$27,ROW(Wheel_Tire_Data!AB$5:AB$99)),ROW(22:22))-4,1),"") ->  | AI123: =IFERROR(INDEX($AE$5:$AE$99,SMALL(IF(Wheel_Tire_Data!$AD$5:$AD$99='Wheels Calculator'!$B$27:$D$27,ROW($AE$5:$AE$99)),ROW(22:22))-4,1),"") ->  | AJ123: =IFERROR(INDEX($AH$102:$AH$126,SMALL(IF($AI$102:$AI$126='Wheels Calculator'!$B$29:$D$29,ROW(Wheel_Tire_Data!$AH$102:$AH$126)),ROW(22:22))-100,1),"") -> 
P124: 151 | Q124: 3450 | AH124: =IFERROR(INDEX(Wheel_Tire_Data!$AB$5:$AB$99,SMALL(IF(Wheel_Tire_Data!$AD$5:$AD$99='Wheels Calculator'!$B$27:$D$27,ROW(Wheel_Tire_Data!AB$5:AB$99)),ROW(23:23))-4,1),"") ->  | AI124: =IFERROR(INDEX($AE$5:$AE$99,SMALL(IF(Wheel_Tire_Data!$AD$5:$AD$99='Wheels Calculator'!$B$27:$D$27,ROW($AE$5:$AE$99)),ROW(23:23))-4,1),"") ->  | AJ124: =IFERROR(INDEX($AH$102:$AH$126,SMALL(IF($AI$102:$AI$126='Wheels Calculator'!$B$29:$D$29,ROW(Wheel_Tire_Data!$AH$102:$AH$126)),ROW(23:23))-100,1),"") -> 
P125: 150 | Q125: 3350 | AH125: =IFERROR(INDEX(Wheel_Tire_Data!$AB$5:$AB$99,SMALL(IF(Wheel_Tire_Data!$AD$5:$AD$99='Wheels Calculator'!$B$27:$D$27,ROW(Wheel_Tire_Data!AB$5:AB$99)),ROW(24:24))-4,1),"") ->  | AI125: =IFERROR(INDEX($AE$5:$AE$99,SMALL(IF(Wheel_Tire_Data!$AD$5:$AD$99='Wheels Calculator'!$B$27:$D$27,ROW($AE$5:$AE$99)),ROW(24:24))-4,1),"") ->  | AJ125: =IFERROR(INDEX($AH$102:$AH$126,SMALL(IF($AI$102:$AI$126='Wheels Calculator'!$B$29:$D$29,ROW(Wheel_Tire_Data!$AH$102:$AH$126)),ROW(24:24))-100,1),"") -> 
P126: 149 | Q126: 3250 | AH126: =IFERROR(INDEX(Wheel_Tire_Data!$AB$5:$AB$99,SMALL(IF(Wheel_Tire_Data!$AD$5:$AD$99='Wheels Calculator'!$B$27:$D$27,ROW(Wheel_Tire_Data!AB$5:AB$99)),ROW(25:25))-4,1),"") ->  | AI126: =IFERROR(INDEX($AE$5:$AE$99,SMALL(IF(Wheel_Tire_Data!$AD$5:$AD$99='Wheels Calculator'!$B$27:$D$27,ROW($AE$5:$AE$99)),ROW(25:25))-4,1),"") ->  | AJ126: =IFERROR(INDEX($AH$102:$AH$126,SMALL(IF($AI$102:$AI$126='Wheels Calculator'!$B$29:$D$29,ROW(Wheel_Tire_Data!$AH$102:$AH$126)),ROW(25:25))-100,1),"") -> 
P127: 147 | Q127: 3075
P128: 146 | Q128: 3000
P129: 145 | Q129: 2900
P130: 143 | Q130: 2725
P131: 142 | Q131: 2650
P132: 141 | Q132: 2575
P133: 137 | Q133: 2300
P134: 133 | Q134: 2060

Sheet Weight Variables - Wheels (hidden)
A1: Option # | B1: Tractor Model | C1: Emissions Level | D1: Transmission | E1: Front Axle | F1: Rear Axle (diameter, 2438 or 3012 mm length) | G1: Front Wheel Assemblies | I1: Rear Wheel Assemblies | L1: Front Fenders | M1: Rear Fenders | N1: Front PTO | O1: Front Weight Support | P1: Front Suitcase Weights (NA) | Q1: Rear Wheel Weights | U1: Pick-up (Monster) Weights | V1: Front Hitch (3 point) | W1: Rear Hitch | X1: Drawbar | Y1: Pickup / Wagon Hitch | Z1: Trailer Brakes | AA1: Air Trailer Brake, Single Line | AB1: Fuel Level (0.85 kg/L) | AC1: # of SCVs | AD1: Ballast Package
G2: Single | H2: Dual | I2: Single | J2: Dual | K2: Triple | Q2: Inside Drive | R2: Outside Drive | S2: Outside Dual/Triple | T2: Configurations | AE2: 72 | AF2: 205 | AG2: 625 | AH2: 530 | AI2: 970 | AJ2: 550+900 | AK2: front support | AL2: suitcase weights
AN3: Rim Size | AO3: Duals | AP3: Singles | AQ3: Double Flat
A4: 1 | B4: 8R 230 | C4: Final Tier 4/ Stage 5 | D4: 16 speed | E4: 1300 MFWD | F4: 110mm x 3012mm (Single Taper) | G4: N/A | H4: N/A | I4: N/A | J4: N/A | K4: N/A | L4: No Fenders | M4: No Extensions | N4: Not Included | O4: Not Included | P4: Front Hitch (No Front Weight Support) | Q4: Not Included | R4: Not Included | S4: Not Included | T4: Not Included | U4: Not Included | V4: Not Included | X4: Not Included | Y4: Not Included | Z4: Not Included | AA4: Not Included | AB4: Empty | AC4: 4 w/out Hitch | AD4: None
A5: 2 | B5: 8R 250 | C5: Tier 3A/ Stage 3 | D5: e23 | E5: 1500 MFWD | F5: 110mm x 3012mm (Double Taper) | L5: 500mm (19.7in) | M5: 2.55m | N5: Included | O5: Included | P5: Front Weight Support, No Weights | Q5: 625 kg (1378 lb) | R5: 70kg (154 lb)+530kg(1169 lb) | S5: 70kg (154 lb)+530kg(1169 lb) | T5: Not compatible with 60 inch treads | U5: 900 kg | V5: Included | W5: CAT 3, Quick Coupler | X5: CAT 3 | Y5: Wagon Hitch, Piton | Z5: Dual line Air | AA5: Included | AB5: 23 GAL | AC5: 4 | AD5: 820kg (1808lb) | AE5: One Pair | AF5: One Pair | AG5: None | AI5: None | AK5: Included | AL5: None | AM5: Includes Front Weight Support with No Front Suitcase Weights, Two Pair 205 kg (452 lb.) Inside/Inner Rear Wheel Weights, and No Outside/Outer Dual Rear Wheel Weights.
A6: 3 | B6: 8R 280 | C6: Tier 2/ Stage 2 | D6: IVT | E6: ILS (</= 320 hp) | F6: 120mm x 2438mm (Double Taper) | L6: 620mm (24.1in) | M6: 2.75m | P6: 4 x 43kg (North America) | Q6: 205 kg (452 lb) | R6: 70kg (154 lb)+900kg(1985 lb) | S6: 70kg (154 lb)+900kg(1985 lb) lb) | T6: No compatible < 42 in rims | U6: 1150 kg | W6: CAT 3, Quick Coupler (Hydraulic) | X6: CAT 4 | Y6: Wagon Hitch, Ball | Z6: Dual line Air & Hydraulic | AB6: Half | AC6: 5 | AD6: 1940 kg (4277 lb) - For Duals | AE6: One Pair | AF6: None | AG6: One Pair | AI6: None | AK6: Included | AL6: 4 | AM6: Includes Front Weight Support with No Front Suitcase Weights, No Inside/Inner Rear Wheel Weights and One Pair 70 kg (154 lb.) with One Pair 900 kg (1984 lb.) Outside/Outer Dual Rear Wheel Weights | AN6: X | AO6: X
A7: 4 | B7: 8R 310 | E7: ILS (>320 hp) | F7: 120mm x 2550mm (Double Flat) | L7: 720mm (28.35in) | P7: 8 x 43kg (North America) | Q7: 2x205 kg (904 lb) | R7: 72kg (159 lb)+205kg(452 lb) | S7: 70kg (154 lb)+550kg (1213 lb)+900kg (1985 lb) | T7: Requires Double Flat axle | U7: 1500 kg | W7: CAT 3, Hook w/ Sway Blocks | X7: CAT 4 HD | Y7: Wagon Hitch, Pin | Z7: Dual Line Hydraulic | AB7: Full | AC7: 6 | AD7: 2450 kg (5401 lb) - For Duals | AE7: One Pair | AF7: One Pairs | AG7: One Pair | AI7: None | AK7: Included | AL7: 8 | AM7: Includes Front Weight Support with No Front Suitcase Weights, One Pair 625 kg (1378 lb.) Inside/Inner Rear Wheel Weights, and One Pair 70 kg (154 lb.) with One Pair 530 kg (1168 lb.) Outside/Outer Dual Rear Wheel Weights. | AN7: X | AO7: X
A8: 5 | B8: 8R 340 | F8: 120mm x 3012mm (Double Taper) | P8: 12 x 43kg (North America) | Q8: 72kg +(2x205 kg) (2126 lb) | R8: 72kg (159 lb)+(2x205kg) (904 lb) | S8: 72kg (159 lb)+205kg(452 lb) | T8: Wheel not compatible < 42 & Requires a Double Flat axle | U8: 1800 kg | W8: CAT 3, Hook w/ Sway Blocks (Hydraulic) | X8: 3 in 1 CAT 3 | Y8: Drawbar Support Insert | AC8: 5 (4+1 Hi-Flow Coup) | AD8: 3795 kg (8367 lb) - For Duals | AE8: One Pair | AF8: Three Pairs | AG8: One Pair | AI8: None | AK8: Included | AL8: 16 | AM8: Includes Front Weight Support with Four Front Suitcase Weights, One Pair 205 kg (452 lb.) Inside/Inner Rear Wheel Weights, One Pair 70 kg (154 lb.) with One Pair 550 kg (1213 lb.), and One Pair 900 kg (1984 lb.) Outside/Outer Dual Rear Wheel Weights. | AN8: X | AO8: X
A9: 6 | B9: 8R 370 | F9: 120mm x 3012mm (Double Flat) | P9: 16 x 43kg (North America) | R9: 72kg (159 lb)+(3x205kg) (1356 lb) | S9: 72kg (159 lb)+(2x205kg) (904 lb) | T9: Not compatible with Duals or Triples | W9: CAT 3, Hook w/ Stabilizer | X9: 3 in 1 CAT 4 | AD9: 5409 kg (11925 lb) - For Duals | AE9: One Pair | AF9: Three Pairs | AG9: One Pair | AI9: None | AK9: Included | AL9: 22 | AM9: Includes Front Weight Support with 22 Front Suitcase Weights, One Pair 625 kg (1378 lb.) Inside/Inner Rear Wheel Weights, One Pair 70 kg (154 lb.), with One Pair 550 kg (1213 lb.), and One Pair 900 kg (1984 lb.) Outside/Outer Dual Rear Wheel Weights. | AN9: X | AO9: X
A10: 7 | B10: 8R 410 | P10: 22 x 43kg (North America) | S10: 72kg (159 lb)+(3x205kg) (1356 lb) | T10: Outside Drive Ballast Not Compatible with Duals or Triples. | W10: CAT 4, Quick Coupler | X10: Pickup Hitch | AD10: 3723 kg (8208 lb) - For Singles | AM10: Includes Front Weight Support with 22 Front Suitcase Weights, One Pair 625 kg (1378 lb.) Inner Rear Wheel Weights, and One Pair 70 kg (154 lb.) with One Pair 530 kg (1168 lb.) Outer Rear Wheel Weights. | AN10: X | AP10: X | AQ10: X
A11: 8 | P11: 4 x 50kg (Europe, Asia) | T11: Not Compatible with Single Tire Configurations | W11: CAT 4, Quick Coupler (Hydrualic) | AD11: 4463 kg (9839 lb) - For Singles | AM11: Includes Front Weight Support with 22 Front Suitcase Weights, One Pair 625 kg (1378 lb.) Inner Rear Wheel Weights, and One Pair 70 kg (154 lb.) with One Pair 900 kg (1984 lb.) Outer Rear Wheel Weights. | AN11: X | AP11: X | AQ11: X
A12: 9 | P12: 8 x 50kg (Europe, Asia) | T12: Requires Double flat axle and 42in, 46in, or 50in rims | W12: CAT 4, Hook w/ Sway Blocks | AD12: 2623 kg (5783 lb) - For Singles | AM12: Includes Front Weight Support with No Front Suitcase Weights, One Pair 625 kg (1378 lb.) Inner Rear Wheel Weights, and One Pair 70 kg (154 lb.) with One Pair 530 kg (1168 lb.) Outer Rear Wheel Weights. | AN12: X | AP12: X | AQ12: X
A13: 10 | P13: 12 x 50kg (Europe, Asia) | T13: Requires Double Flat Axle | W13: CAT 4, Hook w/ Sway Blocks (Hydraulic) | AD13: 3363 kg (7414 lb) - For Singles | AM13: Includes Front Weight Support with No Front Suitcase Weights, One Pair 625 kg (1378 lb.) Inner Rear Wheel Weights, and One Pair 70 kg (154 lb.) with One Pair 900 kg (1984 lb.) Outer Rear Wheel Weights. | AN13: X | AP13: X | AQ13: X
A14: 11 | P14: 16 x 50kg (Europe, Asia) | T14: Requires 42in, 46in, or 50in diameter wheels | W14: CAT 4, Hook w/ Stabilizers
A15: 12 | P15: 22 x 50kg (Europe, Asia) | T15: Additional ballast not compatible with ballast packages | W15: CAT 4, Hook w/ Stabilizers (Hydraulic)
A16: 13 | T16: Vehicle exceeds Max Ballast Weight of 20,000kg (44,100lb)
A17: 14 | T17: Outside Wheel Weights not Recommended with Triples
A18: 15
C20: = Updated
T22: =900*2.20462 -> 1984.158
B24: Power (hp) | C24: Weight (kg)
A25: =A1 -> Option # | B25: Tractor Model | C25: Emissions Level | D25: Transmission | E25: Front Axle | F25: Rear Axle | G25: Front Wheel Assemblies | I25: Rear Wheel Assemblies | L25: Front Fenders | M25: Rear Fenders | N25: Front PTO | O25: Front Weight Support | P25: Front Suitcase Weights (NA) | Q25: Rear Wheel Weights | U25: Monster Weights (Front Hitch) | V25: Front Hitch | W25: Rear Hitch | X25: Drawbar | Y25: Pickup / Wagon Hitch | Z25: Trailer Brakes | AA25: Single Line | AB25: Fuel Level (0.85 kg/L) | AC25: # of SCV's | AD25: Ballast Package
G26: Single | H26: Dual | I26: Single | J26: Dual | K26: Triple | Q26: Inside Drive | R26: Outside Drive | S26: Outside Dual/Triple | T26: Configs
B27: 0 | C27: 0 | D27: 0 | E27: 0 | F27: 0 | G27: 0 | H27: 0 | I27: 0 | J27: 0 | K27: 0 | L27: 0 | M27: 0 | N27: 0 | O27: 0 | P27: 0 | Q27: 0 | R27: 0 | S27: 0 | T27: 0 | U27: 0 | V27: 0 | W27: 0 | X27: 0 | Y27: 0 | Z27: 0 | AA27: 0 | AB27: 0 | AC27: 0
A28: 1 | B28: 230 | C28: 1504 | D28: 947.85 | E28: =SUM(F107:F122) -> 1044.35101 | F28: 460.11 | G28: 0 | H28: 0 | I28: 0 | J28: 0 | K28: 0 | L28: 0 | M28: 49.5 | N28: 0 | O28: 0 | P28: 0 | Q28: 0 | R28: 0 | S28: 0 | U28: 0 | V28: 0 | W28: 0 | X28: 0 | Y28: 0 | Z28: 0 | AA28: 0 | AB28: 0 | AC28: 64.805621 | AD28: 0
A29: 2 | B29: 250 | C29: 1216 | D29: 1167.8 | E29: =SUM(H107:H125) -> 1406.1906 | F29: 460.11 | L29: 60.921402 | M29: 53.4 | N29: =SUM(K107:K111) -> 162.91119 | O29: 191.64 | P29: 191.64 | Q29: 1250 | R29: 1200 | S29: 1200 | U29: 907.7 | V29: 743.6 | W29: 316.6 | X29: 142.87 | Y29: =31.298+K114 -> 52.468 | Z29: 50 | AA29: 11.0097 | AB29: =23*3.785412*0.85 -> 74.0048046 | AC29: 73.055414 | AD29: 964
A30: 3 | B30: 250 | C30: 1216 | D30: 1319.73 | E30: 1521 | F30: 374.41499 | L30: 86.893856 | M30: 55.5 | P30: =43*4+O29 -> 363.64 | Q30: 410 | R30: 1940 | S30: 1940 | U30: 1156.3 | W30: 326.4 | X30: 165.77 | Y30: =37.05+K114 -> 58.22 | Z30: 63.0198 | AB30: =0.5*AB31 -> 274.125 | AC30: 84.161861 | AD30: 1940
A31: 4 | B31: 310 | E31: 1610 | F31: 453.09 | L31: 72.341445 | P31: =43*8+O29 -> 535.64 | Q31: 820 | R31: 544 | S31: 544 | U31: 1506 | W31: 215.6 | X31: 183.24 | Y31: =R107 -> 29.26 | Z31: 33.26 | AB31: =645*0.85 -> 548.25 | AC31: 95.27177 | AD31: 2450
A32: 5 | B32: 340 | F32: 494.61 | P32: =43*12+O29 -> 707.64 | Q32: 964 | R32: 964 | S32: 964 | U32: 1806 | W32: 231.3 | X32: 171.182 | Y32: =K114 -> 21.17 | AC32: 88.446464 | AD32: 3795
A33: 6 | B33: 370 | F33: 493.73 | P33: =43*16+O29 -> 879.64 | R33: 1374 | S33: 1374 | W33: 374.7 | X33: 171.762 | Y33: 143.373479 | AD33: 5409
A34: 7 | B34: 410 | P34: =43*22+P29 -> 1137.64 | R34: 3040 | W34: 455.5 | X34: 277 | AD34: 3723
A35: 8 | P35: =$P$29+4*50 -> 391.64 | W35: 473.9 | AD35: 4463
A36: 9 | P36: =$P$29+8*50 -> 591.64 | W36: 252.6 | AD36: 2623
A37: 10 | P37: =$P$29+12*50 -> 791.64 | W37: 277.1 | AD37: 3363
A38: 11 | P38: =$P$29+16*50 -> 991.64 | W38: 406.9
A39: 12 | P39: =$P$29+22*50 -> 1291.64 | W39: 431.4
A40: 13
A49: 14
A50: 15
B52: updated | C52: did not include differential between 40 and 50 km/h, using DB tractor averages (see below) | E52: From Pro E | K52: ILS Avgs | L52: From MMI OSB100, U8 and Argos | N52: ETN96116 | S52: 1962kg from ProE, ETN20077 | T52: Field Installed | U52: From ETN 20929, with density correction on R538129_S1RE.prt | X52: Pickup hitch weight from SAP Wagon from Aeros -- *Subtracting 3.2kg if Stab (values are shown for sway blocks) | Z52: 74.0295-63.0198 | AA52: Capacity: FT4/48=645 L FT4/49=686 L Non-FT4=719 L | AB52: From Pro E, See "Aeros ETNS" for ETN numbers -- RE3272882_V1 must be suppressed | AG52: =63*208-29.2*68 -> 11118.4
Q53: Refer to ETN tab for ProE Data | AA53: 1 L = .2641721 gal | AG53: =AG52/92.24 -> 120.5377277
B55: Power (hp) | C55: Dist. from Rear Axle forward to C.G. (mm)
A56: =A24 -> 0 | B56: Tractor Model | C56: Emissions Level | D56: Transmission | E56: Front Axle | F56: Rear Axle (diameter, 2438 or 3012 mm length) | G56: Front Wheel Assemblies | I56: Rear Wheel Assemblies | L56: Front Fenders | M56: Rear Fenders | N56: Front PTO | O56: Front Weight Support | P56: Front Suitcase Weights (NA) | Q56: Rear Wheel Weights | U56: Monster Weights (Front Hitch) | V56: Front Hitch | W56: Rear Hitch | X56: Drawbar | Y56: Pickup / Wagon Hitch | Z56: Trailer Brakes | AA56: Single Line | AB56: Fuel Level (0.85 kg/L) | AC56: # of SCV's
G57: Single | H57: Dual | I57: Single | J57: Dual | K57: Triple | Q57: 72 kg | R57: 205 kg | S57: 625 kg | T57: 970 kg
B58: 0 | C58: 0 | D58: 0 | E58: 0 | F58: 0 | G58: 0 | H58: 0 | I58: 0 | J58: 0 | K58: 0 | L58: 0 | M58: 0 | N58: 0 | O58: 0 | P58: 0 | Q58: 0 | R58: 0 | S58: 0 | T58: 0 | U58: 0 | V58: 0 | W58: 0 | X58: 0 | Y58: 0 | Z58: 0 | AA58: 0 | AB58: 0 | AC58: 0
A59: 1 | B59: 245 | C59: =AVERAGE(-3002.32,-2933.29) -> -2967.805 | D59: =-2393+377.15 -> -2015.85 | E59: -3050 | F59: 0 | G59: 0 | H59: 0 | I59: 0 | J59: 0 | K59: 0 | L59: 0 | M59: 0 | N59: 0 | O59: 0 | P59: 0 | Q59: 0 | R59: 0 | S59: 0 | T59: 0 | U59: 0 | V59: 0 | W59: 0 | X59: 0 | Y59: 0 | Z59: 0 | AA59: 0 | AB59: 0 | AC59: =-388*-1 -> 388 | AD59: 0
A60: 2 | B60: 270 | C60: =AVERAGE(-2966.13, -2934.78,-2918.77) -> -2939.893333 | D60: =-2393+416 -> -1977 | E60: -3050 | F60: 0 | L60: -2636 | M60: 29.826 | N60: -3769.24 | O60: 4524.12 | P60: -4496.1 | Q60: 0 | R60: 0 | S60: 0 | T60: 0 | U60: -5259.7 | V60: -4558 | W60: 949.3882562 | X60: 659.2435606 | Y60: 792.831 | Z60: 208 | AA60: -381 | AB60: -1325 | AC60: =-388*-1 -> 388 | AD60: 0
A61: 3 | B61: 295 | C61: =AVERAGE(-2996.036, -2927.35) -> -2961.693 | D61: =-2393+404 -> -1989 | E61: -3080 | F61: 0 | L61: -2906 | M61: 242.099 | P61: -4651.107 | R61: 0 | U61: -5255.51 | W61: 945.6979 | X61: 685.1222037 | Y61: 844.079 | Z61: 121 | AB61: -1305 | AC61: =-388*-1 -> 388 | AD61: 0
A62: 4 | B62: 320 | E62: -3080 | F62: 0 | L62: -2781 | P62: -4706.192 | R62: 0 | U62: -5361.71 | W62: 755.1242998 | X62: 690.2077385 | Y62: 834.061 | Z62: -43.966 | AB62: -1098 | AC62: =-388*-1 -> 388 | AD62: 0
A63: 5 | B63: 345 | F63: 0 | P63: -4734.486 | R63: 0 | U63: -5361.47 | W63: 759.1980553 | X63: 731.365632 | AB63: -1288 | AC63: =-388*-1 -> 388 | AD63: -210
A64: 6 | B64: 370 | P64: -4751.736 | R64: 0 | W64: 498.3601139 | X64: 731.9881683 | AB64: -1070 | AD64: -1002
A65: 7 | P65: -4768.24 | W65: 954.4294097 | X65: 201 | AD65: -1456
A66: 8 | P66: -4651.107 | W66: 955.023466 | AD66: -1214
A67: 9 | P67: -4706.192 | W67: 836.3785117 | AD67: 0
A68: 10 | P68: -4734.486 | W68: 838.0659899 | AD68: 0
A69: 11 | P69: -4751.736 | W69: 564.7275064
A70: 12 | P70: -4768.24 | W70: 581.2389803
A71: 13
A72: 14
A73: 15
AA74: 1 gal = 3.785412 L
N75: From Creo | O75: From Creo | T75: From Creo | W75: From Creo
B77: AVERAGES
B78: 16 PST | S78: =(23*7.05)/645 -> 0.2513953488
B79: Minimum | C79: 7567.821325
C80: 1300 | D80: 0
C81: 1500 | D81: 549.1786746
C82: ILS | D82: 907.310667
B84: 23 PST
B85: Minimum | C85: 7793.637818
C86: 1300 | D86: 0
C87: 1500 | D87: 495.3933756
C88: ILS | D88: 817.8584858
B90: IVT
B91: Minimum | C91: 7884
C92: 1300 | D92: 0
C93: 1500 | D93: 532.4583966
C94: ILS | D94: 921.6583249
B98: MIN | C98: =MIN(C28:C50) -> 1216 | D98: =MIN(D28:D50) -> 947.85 | E98: 1044.35101 | F98: 374.41499 | G98: 0 | H98: 0 | I98: 0 | J98: 0 | K98: 0 | L98: 0 | M98: 49.5 | N98: 0 | O98: 0 | P98: =MIN(P29:P50) -> 191.64 | Q98: 0 | R98: 0 | S98: 0 | T98: 0 | U98: 0 | V98: 0 | W98: 0 | X98: 0 | Y98: 0 | Z98: 0 | AA98: 0 | AB98: 0
C99: 16 PST | D99: 1300 MFWD
B101: MAX | C101: =MAX(C28:C50) -> 1504 | D101: =MAX(D28:D50) -> 1319.73 | E101: 1610 | F101: 494.61 | G101: 0 | H101: 0 | I101: 0 | J101: 0 | K101: 0 | L101: 86.893856 | M101: 55.5 | N101: 162.91119 | O101: 191.64 | P101: =MAX(P29:P50) -> 1291.64 | Q101: 1250 | R101: 3040 | S101: 1940 | T101: 0 | U101: 1806 | V101: 743.6 | W101: 473.9 | X101: 277 | Y101: 143.373479 | Z101: 63.0198 | AA101: 11.0097 | AB101: 548.25
C102: =INDEX(Trans, MATCH(C101,kg_Trans,0)) ->  | D102: IVT | E102: 120mm, extra long | K102: 750mm | L102: Extra Wide | M102: Front PTO | N102: Front Support | O102: 22 | P102: 2 | V102: CAT 4, Quick Coupler (Hydraulic) | W102: 3 in 1 CAT 4 | X102: Pickup Hitch | Y102: Air & Hydraulic | Z102: Included | AA102: Full | AB102: 6 w/ hitch
B105: Front Axle
B106: ILS < 295 HP | D106: ILS 320 hp >> | F106: 1300 MWFD | H106: 1500 MFWD | K106: Front PTO | M106: RearHitch | R106: Wangon Hitch | U106: Rear Axle ETNs | AA106: Fenders
B107: 310.99 | C107: ETN200503 | D107: 310.99 | E107: ETN200503 | F107: 16.8 | G107: ETN10223 | H107: 7.63 | I107: ETN12361 | K107: 106.61 | L107: ETN112759 | M107: 168.46 | N107: ETN194236 | O107: CAT 3 hook w/ stablizers | R107: 29.26 | S107: ETN179681 | U107: 594.92 | V107: ETN203066 | W107: 110 mm R&P | Z107: 2.55 SW | AA107: BRE10459 | AB107: 7.11
B108: 4.31 | C108: ETN10642 | D108: 4.31 | E108: ETN10642 | F108: 41.98 | G108: ETN4349 | H108: 33.89 | I108: ETN10220 | K108: 0.00119 | L108: ETN96528 | M108: 21.73 | N108: ETN4463_19 | U108: 460.11 | V108: ETN170965 | Z108: 2.55LW | AA108: BRE10460 | AB108: 14.83
B109: 7.98 | C109: ETN173484 | D109: 7.98 | E109: ETN173484 | F109: 1.99 | G109: ETN10646 | H109: 58.75 | I109: ETN19168 | K109: 38.52 | L109: ETN216142 | M109: 108.9 | N109: ETN21079 | U109: 40.73 | V109: ETN18314 | Z109: 2.75 SW | AA109: BRE10461
B110: 431.77 | C110: ETN188604 | D110: 429.11 | E110: ETN188606 | F110: 41.61 | G110: ETN4343 | H110: 1.67 | I110: ETN171363 | K110: 9.16 | L110: ETN16693 | N110: ETN4465_19 | U110: 315.22 | V110: ETN224157 | Z110: 2.75LW | AA110: BRE10462
B111: 74.19 | C111: ETN18989 | D111: 89.66 | E111: ETN19575 | F111: 0 | G111: ETN183896 | H111: 23.67 | I111: ETN185089 | K111: 8.62 | L111: ETN16762 | M111: 50.67 | N111: ETN171078 | U111: 81.84 | V111: ETN170961 | Z111: 2.55 lw | AA111: ETN170306 | AB111: 57.06 | AC111: =AB111-AB108 -> 42.23
B112: 63.73 | C112: ETN19789 | D112: 7.53 | E112: ETN18969 | F112: 38.35 | G112: ETN15623 | H112: 2.49 | I112: ETN183895 | M112: 76.01 | N112: ETN97038 | O112: CAT 3 hook w/ swayblocks(hydraulic) | U112: 147.73 | V112: ETN181748
B113: 12.97 | C113: ETN184069 | D113: 12.69 | E113: ETN184069 | F113: 0.03581 | G113: ETN185052 | H113: 0.9354 | I113: ETN19611 | K113: drawbar support | M113: 9.28 | N113: ETN4723_05 | U113: 21.25 | V113: ETN170002
B114: 80.99 | C114: ETN19347 | D114: 72.62 | E114: ETN106761 | F114: 26.32 | G114: ETN4350 | H114: 121.41 | I114: ETN202392 | K114: 21.17 | L114: ETN21221 | M114: 50.67 | N114: ETN171078 | U114: 285.89 | V114: ETN170969
B115: 1.98 | C115: ETN189894 | D115: 80.99 | E115: ETN19347 | F115: 0 | G115: ETN167222 | H115: 6.9 | I115: ETN167224 | K115: CAT 3 support | M115: 32.3 | N115: ETN93372 | U115: 3.83 | V115: ETN185838
B116: 39.53 | C116: ETN4321 | D116: 1.98 | E116: ETN189894 | F116: 0.426 | G116: ETN181035 | H116: 0.279 | I116: ETN181036 | K116: 70.7 | L116: ETN92940 | M116: 21.13 | N116: ETN4462_07 | O116: CAT 3 hook w/ sway block | U116: 16.18 | V116: ETN20683 | W116: IVT
B117: 4.86 | C117: ETN167227 | D117: 39.52 | E117: ETN4321 | F117: 169.97 | G117: ETN197045 | H117: 147.79 | I117: ETN185050 | K117: Cat 4 support | M117: 85.45 | N117: ETN97036 | O117: CAT 3 QC | U117: 24.31 | V117: ETN184769
B118: 12.43 | C118: ETN167272 | D118: 2.59 | E118: ETN184297 | F118: 169.97 | G118: ETN14572 | H118: 224.45 | I118: ETN185051 | K118: 68.58 | L118: ETN20564 | M118: 9.14 | N118: ETN4471_07 | U118: 0.0042879 | V118: ETN179470
B119: 2.59 | C119: ETN184297 | D119: 85.67 | E119: ETN173498 | F119: 161.19 | G119: ETN128505 | H119: 222.62 | I119: ETN19893 | M119: 50.67 | N119: ETN171078_05 | U119: 34.22 | V119: ETN184515
B120: 0.9163 | C120: ETN178609 | D120: 4.86 | E120: ETN167227 | F120: 161.2 | G120: ETN128504 | H120: 0.2507 | I120: ETN15593 | K120: CAT 4 | M120: 21.14 | N120: ETN4462_07 | U120: 1.454 | V120: ETN174060
B121: 195.58 | C121: ETN219942 | D121: 0.9163 | E121: ETN178609 | F121: 0.1192 | G121: ETN107943 | H121: 0.1192 | I121: ETN107943_02 | K121: 88.21 | L121: ETN20103 | M121: 111.08 | N121: ETN3744_01 | U121: 12.55 | V121: ETN170446
B122: 195.58 | C122: ETN219943 | D122: 233.57 | E122: ETN219938 | F122: 214.39 | G122: RE587670 | H122: 222.63 | I122: ETN19892 | K122: 8.99 | L122: ETN4479 | M122: 30.97 | N122: ETN93370 | O122: CAT 3 QC (hydraulic) | U122: =SUM(U107:U121) -> 2040.238288
B123: 72.62 | C123: ETN122144 | D123: 233.57 | E123: ETN219939 | F123: =SUM(F107:F121) -> 829.96101 | H123: 310.93 | I123: R563354 | K123: 68.58 | L123: ETN20564 | U123: 493.73 | V123: ETN170964
C124: 16 PST | D124: 0.1192 | E124: ETN19486 | F124: pres | H124: 0.935 | I124: ETN185135 | K124: CAT 4 HD | M124: 85.41 | N124: ETN97036 | O124: CAT 4 QC | U124: =SUM(U107:U121)-U108+U123 -> 2073.858288
B125: 1.37 | C125: ETN20435 | D125: IVT | G125: ETN15806 | H125: =(0.89*7.57)+(0.89*13.6) -> 18.8413 | I125: Oil volume | K125: 105.68 | L125: ETN20105 | M125: 9.14 | N125: ETN4471_09
B126: 2.27 | C126: ETN180259 | D126: 0.492 | E126: ETN15806 | K126: 8.99 | L126: ETN4479 | M126: 50.67 | N126: ETN171078_05
B127: 1.13 | C127: ETN173492 | D127: 1.09 | E127: ETN20436 | K127: 68.58 | L127: ETN20564 | M127: 23.87 | N127: ETN4464_07 | O127: Mech
B128: =0.89*11.32 -> 10.0748 | C128: oil volume | D128: 8.34 | E128: ETN188984 | M128: 42.23 | N128: ETN20979 | O128: Hydrualic
D129: 2.92 | E129: ETN180260 | M129: 229.62 | N129: ETN4470_30
D130: 1.17 | E130: ETN173493 | M130: 138.38 | N130: ETN149338 | O130: CAT 4 SwayBlocks
D131: =0.89*11.32 -> 10.0748 | E131: Oil volume | M131: 9.2 | N131: ETN4723_07
M132: 50.67 | N132: ETN171078_02
M133: 24.56 | N133: ETN4465_19 | O133: Mech
M134: 43.91 | N134: ETN20980 | O134: Hydraulic
M135: 110.99 | N135: ETN97039 | O135: Stabilizers
M136: 50.67 | N136: ETN171078_02
M137: 24.56 | N137: ETN4465_19 | O137: Mech
M138: 43.91 | N138: ETN20980 | O138: Hydraulic

Sheet 2 Tracks Calculator
D5: Customer Name: | H5: Name of analysis:
D6: Customer | H6: Application
B9: Model: | D9: Emissions level: | F9: Transmission: | H9: Max Tread Setting: | J9: Rear Drive Wheels:
B10: RT 370 | D10: Final Tier 4/ Stage 5 | F10: IVT | H10: 96in/120in (2038mm/3048mm) | J10: Standard
A11: (kg) | B11: =RIGHT(B10,3)*1 -> 370 | D11: =INDEX('Weight Variables -2 Track'!N22:N24,MATCH(_23_PST,'Weight Variables -2 Track'!N3:N5,0)) -> 1504 | F11: =INDEX('Weight Variables -2 Track'!C22:C23,MATCH('2 Tracks Calculator'!F10,'Weight Variables -2 Track'!C3:C4,0)) -> 1319.73 | H11: =INDEX(kg_RearAxleT,MATCH(H10,RearAxleT,0)) -> 1511 | J11: =INDEX(kg_RearDriveWheels, MATCH(J10,RearDriveWheels,0)) -> 741.89
A12: (mm) | B12: 6700 | D12: =F12 -> -2388 | F12: =INDEX(mm_TransT, MATCH(F10,TransT,0)) -> -2388 | H12: =INDEX(mm_RearAxleT,MATCH(H10,RearAxleT,0)) -> -689 | J12: =INDEX(mm_RearDriveWheels, MATCH(J10,RearDriveWheels,0)) -> 0
B13: -950
B15: Rear Hitch: | D15: Drawbar: | F15: SCVs: | H15: Fuel Level: | J15: Tracks:
B16: CAT 4, Quick Coupler | D16: CAT 4 HD | F16: 4 | H16: Full | J16: 30in (762mm), 6500
A17: (kg) | B17: =INDEX(kg_RearHitchT, MATCH(B16,RearHitchT,0)) -> 455.5 | D17: =INDEX(kg_DrawbarT, MATCH(D16,DrawbarT,0)) -> 183 | F17: =INDEX(kg_SCVsT, MATCH(F16,SCVsT,0)) -> 73.055414 | H17: =INDEX(kg_FuelT, MATCH(H16,FuelT,0)) -> 644.3 | J17: =INDEX('Weight Variables -2 Track'!D22:D29,MATCH('2 Tracks Calculator'!J16,'Weight Variables -2 Track'!D3:D10,0)) -> 3998.4
A18: (mm) | B18: =INDEX(mm_RearHitchT, MATCH(B16,RearHitchT,0)) -> 0 | D18: =INDEX(mm_DrawbarT, MATCH(D16,DrawbarT,0)) -> 590 | F18: =INDEX(mm_SCVsT, MATCH(F16,SCVsT,0)) -> 294 | H18: =INDEX(mm_FuelT, MATCH(H16,FuelT,0)) -> -832 | J18: =INDEX(mm_Tracks, MATCH(J16,Tracks,0)) -> -1269.981
H19: Assuming .85 kg/L
B21: Front Ballast | F21: Configuration | H21: Other Ballast
B22: Front Suitcase Weights: | D22: Idler Weights: | F22: =IF(D39>17700,'Weight Variables -2 Track'!O3, "GOOD") -> GOOD | H22: Additional Ballast (kg):
B23: Front Weight Support, No Weights | D23: None | H23: Expand Rows, Enter Below
A24: (kg) | B24: =INDEX('Weight Variables -2 Track'!H22:H29, MATCH(B23,'Weight Variables -2 Track'!H3:H10,0)) -> 191.64 | D24: =INDEX(kg_IdlerWeights, MATCH(D23,IdlerWeights,0)) -> 0 | H24: 0
A25: (mm) | B25: =INDEX('Weight Variables -2 Track'!H41:H48, MATCH(B23,'Weight Variables -2 Track'!H3:H10,0)) -> -4896.1 | D25: =INDEX(mm_IdlerWeights, MATCH(D23,IdlerWeights,0)) -> 0 | H25: 0
B26: Must include Front Weight Support | F26: =TEXT(D33,"yymmdd") -> 230123 | H26: Input wieght (kg), and distance from rear axle (mm). Forward is negative.
F31: Configuration Summary:
B32: Analysis: | D32: =IF(H6="","Not specified",H6) -> Application
B33: Date Completed: | D33: =TODAY() -> 2023-01-23 | F33: Model: | H33: =B10 -> RT 370
B34: Performed by: | D34: =IF(D6="","Not specified",D6) -> Customer | F34: Engine Emissions level: | H34: =_23_PST -> Final Tier 4/ Stage 5
F35: Transmission: | H35: =F10 -> IVT
F36: Max Tread Setting: | H36: =H10 -> 96in/120in (2038mm/3048mm)
F37: Rear Drive Wheels: | H37: =J10 -> Standard
F38: Tracks: | H38: =J16 -> 30in (762mm), 6500
B39: Total Weight (kg) | D39: =SUM(D11,F11,H11,J11,B17,D17,F17,H17,J17,B24,D24,H24,B12) -> 17322.51541 | F39: Rear Hitch: | H39: =B16 -> CAT 4, Quick Coupler
B40: Front Axle Weight (kg) | D40: =(D39*D44)/-2508 -> 8202.526389 | F40: Drawbar: | H40: =D16 -> CAT 4 HD
B41: Rear Axle Weight (kg) | D41: =D39-D40 -> 9119.989025 | F41: # of SCVs: | H41: =F16 -> 4
B42: Front Split | D42: =D40/D39 -> 0.4735182041 | F42: Fuel Level: | H42: =H16 -> Full
B43: Rear Split | D43: =D41/D39 -> 0.5264817959
B44: Dist. from Rear Axle forward to C.G. (mm) | D44: =(SUM(D11*D12,F11*F12,H11*H12,J11*J12,B17*B18,D17*D18,J17*J18,F17*F18,H17*H18,B24*B25,D24*D25,H24*H25,B12*B13))/D39 -> -1187.583656 | F44: Front Suitcase Weights: | H44: =B23 -> Front Weight Support, No Weights
F45: Idler Weights: | H45: =D23 -> None
B46: Kg / Engine Power (ps) | D46: =D39/B11 -> 46.81760923 | F46: Additional Ballast (kg): | H46: =H24 -> 0
B49: Total Weight (lb) | D49: =D39*2.20462 -> 38189.56393
B50: Front Axle Weight (lb) | D50: =D39*2.20462 -> 38189.56393
B51: Rear Axle Weight (lb) | D51: =D40*2.20462 -> 18083.45373
B53: lb / Engine Power (ps) | D53: =D49/B11 -> 103.2150377

Sheet Weight Variables -2 Track (hidden)
A1: Option # | B1: Tractor Model | C1: Transmission | D1: Tracks | E1: Rear Drive Wheels | F1: Max Tread Setting | G1: Front Weight Support | H1: Front Suitcase Weights (NA) | I1: Idler Weights | J1: Drawbar | K1: Rear Hitch | L1: Fuel Level (758 L capacity at 0.85 kg/L) | M1: # of SCV's | N1: Emission Levels | O1: Configurations
A3: 1 | B3: RT 310 | C3: e23 | D3: 16in (406mm), 6500 | E3: Standard | F3: 96in/120in (2038mm/3048mm) | G3: Not Included | H3: No Front Weight Support | I3: None | J3: Not Included | K3: CAT 4, Quick Coupler | L3: Empty | M3: 4 | N3: Final Tier 4/ Stage 5 | O3: Vehicle exceeds Max Ballast Weight of 17,700kg (39,000lb)
A4: 2 | B4: RT 340 | C4: IVT | D4: 18in (457mm), 4500 | E4: Wide | F4: 160in (4064mm) | G4: Included | H4: Front Weight Support, No Weights | I4: 146kg (323 lb) - 4x36kg (80lb) Weights | J4: CAT 4 | K4: CAT 4, Hook w/ Sway Blocks | L4: 23 GAL | M4: 5 | N4: Tier 3/ Stage 3
A5: 3 | B5: RT 370 | D5: 18in (457mm), 6500 | H5: 4 x 43kg (North America) | I5: 432kg (953lb) - 4x36kg (80lb) + 4x72kg (159lb) | J5: CAT 4 HD | L5: Half | M5: 6 | N5: Tier 2/ Stage 2 engine
A6: 4 | B6: RT 410 | D6: 24in (610mm), 4500 | H6: 8 x 43kg (North America) | I6: 1252kg (2760 lb) - 4x36kg (80lb) + 4x72kg (159lb) + 4x205kg (452lb) | L6: Full | M6: 5 (4+1 Hi-Flow Coup)
A7: 5 | D7: 25in (635mm), 4500 | H7: 12 x 43kg (North America)
A8: 6 | D8: 25in (635mm), 6500 | H8: 16 x 43kg (North America)
A9: 7 | D9: 30in (762mm), 4500 | H9: 22 x 43kg (North America)
A10: 8 | D10: 30in (762mm), 6500 | H10: 34 x 43kg (22 + 12 "cheek" weights)
A11: 9
A12: 10
A13: 11
A14: 12
C16: = Updated/Confirmed
A19: Option # | B19: Power (hp) | C19: Weight (kg)
B20: Tractor Model | C20: Transmission | D20: Tracks | E20: Rear Drive Wheels | F20: Max Tread Setting | G20: Front Weight Support | H20: Front Suitcase Weights (NA) | I20: Idler Weights | J20: Drawbar | K20: Rear Hitch | L20: Fuel Level (758 L capacity at 0.85 kg/L) | M20: # of SCV's | N20: Emissions levels
A22: 1 | B22: 310 | C22: 1167.8 | D22: =SUM(L57:L58) -> 3236.6 | E22: 741.89 | F22: 1511 | G22: 0 | H22: 0 | I22: 0 | J22: 0 | K22: 455.5 | L22: 0 | M22: 73.055414 | N22: 1504
A23: 2 | B23: 340 | C23: 1319.73 | D23: =SUM(L59:L60) -> 3108.65 | E23: 1039.08 | F23: 2141.5 | G23: 191.64 | H23: 191.64 | I23: 156.551363 | J23: 166 | K23: 252.6 | L23: =23*3.785412*0.85 -> 74.0048046 | M23: 84.161861 | N23: 1216
A24: 3 | B24: 370 | D24: =SUM(L61:L62) -> 3284.6 | H24: =43*4+H23 -> 363.64 | I24: =36*4+I23 -> 300.551363 | J24: 183 | L24: =0.5*L25 -> 322.15 | M24: 95.27177 | N24: 1216
A25: 4 | B25: 410 | D25: =SUM(L63:L64) -> 3315.88 | H25: =43*8+H23 -> 535.64 | I25: =(36*4)+(72*4)+I23 -> 588.551363 | L25: =758*0.85 -> 644.3 | M25: 88.446464
A26: 5 | D26: =SUM(L65:L66) -> 3577.77 | H26: =43*12+H23 -> 707.64 | I26: =(36*4)+(205*4)+I23 -> 1120.551363
A27: 6 | D27: =SUM(L67:L68) -> 3769.93 | H27: =43*16+H23 -> 879.64 | I27: =(36*4)+(72*4)+(205*4)+I23 -> 1408.551363
A28: 7 | D28: =SUM(L69:L70) -> 3772.08 | H28: =43*22+H23 -> 1137.64
A29: 8 | D29: =SUM(L71:L72) -> 3998.4 | H29: 1653
A30: 9
A31: 10
A32: 11
A33: 12
A35: Comments | B35: updated | G35: Using same value as wheels, updated tracks etn gives 175.9672 | H35: Same as wheels, plus 10 weight package for 32 | I35: 323 lb = 4 starter weight package | M35: ^currently wheels
A38: Option # | B38: Power (hp) | C38: Dist. from Rear Axle forward to C.G. (mm)
B39: Tractor Model | C39: Transmission | D39: Tracks | E39: Rear Drive Wheels | F39: Max Tread Setting | G39: Front Weight Support | H39: Front Suitcase Weights (NA) | I39: Idler Weights | J39: Drawbar | K39: Rear Hitch | L39: Fuel Level (758 L capacity at 0.85 kg/L) | M39: # of SCV's | N39: Emissions levels
A41: 1 | B41: 320 | C41: -2376 | D41: =-400+-869.981 -> -1269.981 | E41: 0 | F41: -689 | G41: 0 | H41: 0 | I41: 0 | J41: 0 | K41: 0 | L41: 0 | M41: 294 | N41: =-2967.805-573 -> -3540.805
A42: 2 | B42: 340 | C42: -2388 | D42: =-400+-869.981 -> -1269.981 | E42: 0 | F42: -640.7 | G42: -4496.1 | H42: =-400+G42 -> -4896.1 | I42: -2508 | J42: 585 | K42: 855 | L42: -1300 | M42: 294 | N42: =-2939.89333333333-573 -> -3512.893333
A43: 3 | B43: 370 | D43: -1269.981 | F43: 0 | G43: . | H43: =-400+-4651.107 -> -5051.107 | I43: -2508 | J43: 590 | K43: 736 | L43: -1181 | M43: 294 | N43: =-573-2961.693 -> -3534.693
A44: 4 | B44: 410 | D44: -1269.981 | H44: =-400+-4706.192 -> -5106.192 | I44: -2508 | L44: -832 | M44: 294
A45: 5 | D45: -1269.981 | H45: =-400+-4734.486 -> -5134.486
A46: 6 | D46: -1269.981 | H46: =-400+-4751.736 -> -5151.736
A47: 7 | D47: -1269.981 | H47: =-400+-4768.24 -> -5168.24
A48: 8 | D48: -1269.981 | H48: -4500
A49: 9 | D49: -1269.981
A50: 10
A51: 11
A52: 12
I56: Rear Axle ETN | L56: Track ETNS | O56: Drawbar ETN | R56: Rear Hitch ETN
L57: =1160.3*2 -> 2320.6 | M57: ETN191458_01 | N57: 16" severe | O57: 86.39 | P57: ETN4487_02 | Q57: CAT 4 | R57: 85.41 | S57: ETN97036_03 | T57: CAT 4 QC
L58: =458*2 -> 916 | M58: ETN17717_01 | O58: 8.9 | P58: ETN4479 | R58: 10.64 | S58: ETN11948_09
L59: =1160.3*2 -> 2320.6 | M59: ETN191458_01 | N59: 18" STD | O59: 103.85 | P59: ETN4728_02 | Q59: CAT 4 HD | R59: 49.8 | S59: ETN198335_03
L60: 788.05 | M60: ETN117711_01 | O60: 8.9 | P60: ETN4479 | R60: 23.87 | S60: ETN4464_09
L61: =1160.3*2 -> 2320.6 | M61: ETN191458_01 | N61: 18" severe | R61: 292.62 | S61: ETN4470_36
L62: =482*2 -> 964 | M62: ETN117716_01 | R62: 110.69 | S62: ETN97039_03 | T62: Sway
L63: =1160.3*2 -> 2320.6 | M63: ETN191458_01 | N63: 24" STD | R63: 10.69 | S63: ETN11949_06
L64: 995.28 | M64: ETN117712_01 | R64: 49.8 | S64: ETN198335_03
L65: =1267.2*2 -> 2534.4 | M65: ETN191457_01 | N65: 25" STD | R65: 24.56 | S65: ETN4465_24
L66: 1043.37 | M66: ETN117713_01
L67: =1267.2*2 -> 2534.4 | M67: ETN191457_01 | N67: 25" severe
L68: 1235.53 | M68: ETN117717_01
L69: =1267.2*2 -> 2534.4 | M69: ETN191457_01 | N69: 30" STD
L70: 1237.68 | M70: ETN117714_03
L71: =1267.2*2 -> 2534.4 | M71: ETN191457_01 | N71: 30" severe
L72: =732*2 -> 1464 | M72: ETN117718_02

Sheet 4 Tracks Calculator
D5: Customer Name: | H5: Name of analysis:
D6: Customer | H6: Application
B8: Model: | D8: Emissions level: | F8: Transmission: | H8: Tread Setting
B9: RX 370 | D9: Final Tier 4/ Stage 5 | F9: e23 | H9: 120in (3048mm)
A10: (kg) | B10: =RIGHT(B9,3)*1 -> 370 | D10: =INDEX('Weight Variables - 4 Track'!C22:C24,MATCH('4 Tracks Calculator'!D9,'Weight Variables - 4 Track'!C3:C5,0)) -> 1504 | F10: =INDEX('Weight Variables - 4 Track'!D22:D23,MATCH('4 Tracks Calculator'!F9,'Weight Variables - 4 Track'!D3:D4,0)) -> 1163.5 | H10: =INDEX('Weight Variables - 4 Track'!N22:N25,MATCH('4 Tracks Calculator'!H9,'Weight Variables - 4 Track'!N3:N6,0)) -> 2885
A11: (mm) | B11: 5880 | D11: =INDEX('Weight Variables - 4 Track'!C41:C43,MATCH('4 Tracks Calculator'!D9,'Weight Variables - 4 Track'!C3:C5,0)) -> -3152.805 | F11: =INDEX('Weight Variables - 4 Track'!D41:D42,MATCH('4 Tracks Calculator'!F9,'Weight Variables - 4 Track'!D3:D4,0)) -> -2162 | H11: =INDEX('Weight Variables - 4 Track'!N41:N44,MATCH('4 Tracks Calculator'!H9,'Weight Variables - 4 Track'!N3:N6,0)) -> -1739
B12: -1200 | D12: 16 PST not available for 345hp or 370hp models | F12: 16 PST not available for 345hp or 370hp models
B14: Front Hitch: | D14: Rear Hitch: | F14: Drawbar: | H14: 3 in 1 Rails Option:
B15: Not Included | D15: CAT 4, Quick Coupler | F15: CAT 4 HD | H15: Not Included
B16: =INDEX('Weight Variables - 4 Track'!O22:O23, MATCH(B15,'Weight Variables - 4 Track'!O3:O4,0)) -> 0 | D16: =INDEX('Weight Variables - 4 Track'!J22:J28,MATCH('4 Tracks Calculator'!D15,'Weight Variables - 4 Track'!J3:J9,0)) -> 455.5 | F16: =INDEX('Weight Variables - 4 Track'!H22:H25,MATCH('4 Tracks Calculator'!F15,'Weight Variables - 4 Track'!H3:H5,0)) -> 183.24 | H16: =_xlfn.IFNA(INDEX('Weight Variables - 4 Track'!I22:I26,MATCH('4 Tracks Calculator'!$H$15,'Weight Variables - 4 Track'!$I$3:$I$7,0)),0) -> 0
B17: =INDEX('Weight Variables - 4 Track'!O41:O42, MATCH(B15,'Weight Variables - 4 Track'!O3:O4,0)) -> 0 | D17: =INDEX('Weight Variables - 4 Track'!J41:J47,MATCH('4 Tracks Calculator'!D15,'Weight Variables - 4 Track'!J3:J9,0)) -> 1079.831391 | F17: =INDEX('Weight Variables - 4 Track'!H41:H44,MATCH('4 Tracks Calculator'!F15,'Weight Variables - 4 Track'!H3:H5,0)) -> 895.2077383 | H17: =_xlfn.IFNA(INDEX('Weight Variables - 4 Track'!$I$41:$I$45,MATCH('4 Tracks Calculator'!$H$15,'Weight Variables - 4 Track'!$I$3:$I$7,0)),0) -> 0
B18: None | D18: None | F18: None | H18: None
B20: Fuel Level: | D20: Trailer Brakes: | F20: # of SCVs:
B21: Half | D21: Dual line Air & Hydraulic | F21: 6
B22: =INDEX('Weight Variables - 4 Track'!L22:L25,MATCH('4 Tracks Calculator'!B21,'Weight Variables - 4 Track'!FuelT,0)) -> 322.15 | D22: =INDEX('Weight Variables - 4 Track'!K22:K25,MATCH('4 Tracks Calculator'!D21,'Weight Variables - 4 Track'!K3:K6,0)) -> 63.0198 | F22: =INDEX(kg_SCVs, MATCH(F21,SCVs,0)) -> 95.27177
B23: =INDEX('Weight Variables - 4 Track'!mm_FuelT,MATCH('4 Tracks Calculator'!B21,'Weight Variables - 4 Track'!FuelT,0)) -> -1243.4798 | D23: =INDEX('Weight Variables - 4 Track'!K41:K44,MATCH('4 Tracks Calculator'!D21,'Weight Variables - 4 Track'!K3:K6,0)) -> 121 | F23: =INDEX(mm_SCVs, MATCH(F21,SCVs,0)) -> 388
B24: Assuming .85 kg/L | F24: None
B26: Front Tracks: | D26: Rear Tracks: | F26: Configuration
B27: 24in (609.6mm) | D27: 24in (609.6mm) | F27: =IF(D50>20000,'Weight Variables - 4 Track'!P3,"GOOD") -> GOOD | I27: 16.5
A28: (kg) | B28: =INDEX('Weight Variables - 4 Track'!E22:E24,MATCH('4 Tracks Calculator'!B27,'Weight Variables - 4 Track'!E3:E5,0)) -> 2770.76 | D28: =INDEX('Weight Variables - 4 Track'!F22:F25,MATCH('4 Tracks Calculator'!D27,'Weight Variables - 4 Track'!F3:F6,0)) -> 4486.89
A29: (mm) | B29: =INDEX('Weight Variables - 4 Track'!E41:E43,MATCH('4 Tracks Calculator'!B27,'Weight Variables - 4 Track'!E3:E5,0)) -> -3253.692 | D29: 0
B30: None | D30: None | F30: =TEXT(D44,"yymmdd") -> 230123
B32: Front Ballast | F32: Other Ballast
B33: Front Suitcase Weights: | F33: Front Mono Weights: | H33: Additional Ballast (kg):
B34: Front Weight Support, No Starter Weight, No Suitcase Weights | F34: Not Included | H34: Expand Rows, Enter Below
A35: (kg) | B35: =INDEX('Weight Variables - 4 Track'!G22:G27,MATCH('4 Tracks Calculator'!B34,'Weight Variables - 4 Track'!G3:G8,0)) -> 104 | F35: =INDEX(kg_PickUpWeights, MATCH(F34,PickUpWeights,0)) -> 0 | H35: 0
A36: (mm) | B36: =INDEX('Weight Variables - 4 Track'!G41:G46,MATCH('4 Tracks Calculator'!B34,'Weight Variables - 4 Track'!G3:G8,0)) -> -4606 | F36: 0 | H36: 0
F37: Region 2 only, Not compatible with front weight support and suitcase weights | H37: Input distance forward from rear axle (mm)
F41: Configuration Summary:
J42: 0
B43: Analysis: | D43: =IF(H6="","Not specified",H6) -> Application | F43: Model: | H43: =B9 -> RX 370
B44: Date Completed: | D44: =TODAY() -> 2023-01-23 | F44: Emssion Levels: | H44: =D9 -> Final Tier 4/ Stage 5
B45: Performed by: | D45: =IF(D6="","Not specified",D6) -> Customer | F45: Transmission: | H45: =F9 -> e23
F46: Tread Setting: | H46: =H9 -> 120in (3048mm)
F47: Front Hitch: | H47: =B15 -> Not Included
F48: Rear Hitch: | H48: =D15 -> CAT 4, Quick Coupler
F49: Drawbar: | H49: =F15 -> CAT 4 HD
B50: Total Weight (kg) | D50: =SUM(D10,F10,H10,B16,D16,F16,H16,B22,D22,F22,B28,D28,B35,F35,H35,B11) -> 19913.33157 | F50: 3 in 1 Rails Option: | H50: =H15 -> Not Included
B51: Front Axle Weight (kg) | D51: =D50*(D55/B29) -> 8657.44001 | F51: Fuel Level: | H51: =B21 -> Half
B52: Rear Axle Weight (kg) | D52: =D50-D51 -> 11255.89156 | F52: Trailer Brakes: | H52: =D21 -> Dual line Air & Hydraulic
B53: Front Split | D53: =D51/D50 -> 0.4347559814 | F53: # of SCVs: | H53: =F21 -> 6
B54: Rear Split | D54: =D52/D50 -> 0.5652440186 | F54: Drawbar: | H54: =F15 -> CAT 4 HD
B55: Dist. from Rear Axle forward to C.G. (mm) | D55: =SUM(D10*D11,F10*F11,H10*H11,B16*B17,D16*D17,F16*F17,H16*H17,B28*B29,D28*D29,B35*B36,F35*F36,H35*H36,B11*B12)/D50 -> -1414.562059 | F55: Front Tracks: | H55: =B27 -> 24in (609.6mm)
F56: Rear Tracks: | H56: =D27 -> 24in (609.6mm)
B57: Kg / Engine Power (ps) | D57: =D50/B10 -> 53.81981505 | F57: Front Suitcase Weights: | H57: =B34 -> Front Weight Support, No Starter Weight, No Suitcase Weights
F58: Pickup (Monster) Weights: | H58: =F34 -> Not Included
F59: Additional Ballast: | H59: =H34 -> Expand Rows, Enter Below
B61: Total Weight (lb) | D61: =D50*2.20462 -> 43901.32905
B62: Front Axle Weight (lb) | D62: =D51*2.20462 -> 19086.3654
B63: Rear Axle Weight (lb) | D63: =D52*2.20462 -> 24814.96365
B65: lb / Engine Power (ps) | D65: =D61/B10 -> 118.6522407

Sheet Weight Variables - 4 Track (hidden)
A1: Option # | B1: Tractor Model | C1: Emissions Levels | D1: Transmission | E1: Front Tracks | F1: Rear Tracks | G1: Front Suitcase Weights (NA) | H1: Drawbar | I1: 3in1 Rails Option | J1: Rear Hitch | K1: Trailer Brakes | L1: Fuel Level (758 L capacity at 0.85 kg/L) | M1: # of SCV's | N1: Tread Settings | O1: Front Hitch | P1: Configuration
A3: 1 | B3: RX 310 | C3: Final Tier 4/ Stage 5 | D3: e23 | E3: 16in (406.4mm) | F3: 16in (406.4mm) | G3: Front Hitch (No Front Weight Support) | H3: Not Included | I3: Not Included | J3: CAT 4, Quick Coupler | K3: Not Included | L3: Empty | M3: 4 | N3: 76in (1930mm) | O3: Not Included | P3: Vehicle exceeds Max Ballast Weight of 20,000kg (44,100lb)
A4: 2 | B4: RX 340 | C4: Tier 3/ Stage 3 | D4: IVT | E4: 18in (457.2mm) | F4: 18in (457.2mm) | G4: Front Weight Support, No Starter Weight, No Suitcase Weights | H4: CAT 4 | I4: Wagon Hitch, Piton | J4: CAT 4, Quick Coupler (Hydraulic) | K4: Dual line Air | L4: 23 GAL | M4: 5 | N4: 80in (2032mm) | O4: Included
A5: 3 | B5: RX 370 | E5: 24in (609.6mm) | F5: 24in (609.6mm) | G5: Front Weight Support with Starter Weight, No Suitcase Weights | H5: CAT 4 HD | I5: Wagon Hitch, Ball | J5: CAT 4, Hook w/ Sway Blocks | K5: Dual line Air & Hydraulic | L5: Half | M5: 6 | N5: 88in (2235mm)
A6: 4 | B6: RX 410 | F6: 30in (762mm) | G6: Front Weight Support with Starter Weight and 8 Suitcase Weights | H6: 3 in 1 CAT 3 | I6: Wagon Hitch, Pin | J6: CAT 4, Hook w/ Stabilizers (Hydraulic) | K6: Dual Line Hydraulic | L6: Full | M6: 5 (4+1 Hi-Flow Coup) | N6: 120in (3048mm)
A7: 5 | G7: Front Weight Support with Starter Weight and 12 Suitcase Weights | H7: 3 in 1 CAT 4 | I7: Drawbar support insert | J7: CAT 4, Hook w/ Stabilizers
A8: 6 | G8: Front Weight Support with Starter Weight and 18 Suitcase Weights | H8: Pickup Hitch | J8: CAT 4, Hook w/ Stabilizers (Hydraulic)
A9: 7
A10: 8
A11: 9
A12: 10
A13: 11
A14: 12
D16: = Updated/Confirmed
A19: Option # | B19: Power (hp) | D19: Weight (kg)
B20: Tractor Model | C20: Emissions Levels | D20: Transmission | E20: Front Tracks | F20: Rear Tracks | G20: Front Suitcase Weights (NA) | H20: Drawbar | I20: 3in1 Rails Option | J20: Rear Hitch | K20: Trailer brakes | L20: Fuel Level (758 L capacity at 0.85 kg/L) | M20: # of SCV's | N20: Tread Settings | O20: Front Hitch
A22: 1 | B22: 310 | C22: 1504 | D22: 1163.5 | E22: 2550.25 | F22: 4203.54 | G22: 0 | H22: 0 | I22: 0 | J22: 455.5 | K22: 0 | L22: 0 | M22: 73.055414 | N22: 2452 | O22: 0
A23: 2 | B23: 340 | C23: 1216 | D23: 1314.6 | E23: 2603.32 | F23: 4271.48 | G23: 104 | H23: 165.77 | I23: 31.3 | J23: 473.9 | K23: 50 | L23: =23*3.785412*0.85 -> 74.0048046 | M23: 84.161861 | N23: 2546 | O23: 780
A24: 3 | B24: 370 | E24: 2770.76 | F24: 4486.89 | G24: 260.6 | H24: 183.24 | I24: 33 | J24: 252.6 | K24: 63.0198 | L24: =0.5*L25 -> 322.15 | M24: 95.27177 | N24: 2752
A25: 4 | B25: 410 | F25: 4645.23 | G25: 609.8 | H25: 171.182 | I25: 26 | J25: 277.1 | K25: 33.26 | L25: =758*0.85 -> 644.3 | M25: 88.446464 | N25: 2885
A26: 5 | G26: 783.1 | H26: 171.762 | I26: 0 | J26: 406.9
A27: 6 | G27: 1043.1 | H27: 277 | J27: 431.4
A28: 7
A29: 8
A30: 9
A31: 10
A32: 11
A33: 12
A35: Comments | B35: updated | G35: Same as wheels, plus 10 weight package for 32 | M35: ^currently wheels
A38: Option # | B38: Power (hp) | D38: Dist. from Rear Axle forward to C.G. (mm)
B39: Tractor Model | C39: Emissions Levels | D39: Transmission | E39: Front Tracks | F39: Rear Tracks | G39: Front Suitcase Weights (NA) | H39: Drawbar | I39: 3in1 Rails Option | J39: Rear Hitch | K39: Trailer brakes | L39: Fuel Level (758 L capacity at 0.85 kg/L) | M39: # of SCV's | N39: Tread Setting | O39: Front Hitch
A41: 1 | B41: 320 | C41: =-2967.805-185 -> -3152.805 | D41: =-1977-185 -> -2162 | E41: =-185+-3069.161 -> -3254.161 | F41: 0 | G41: 0 | H41: 0 | I41: 0 | J41: 1079.831391 | K41: 0 | L41: 0 | M41: =388+205 -> 593 | N41: -1727 | O41: 0
A42: 2 | B42: 345 | C42: =-2939.89333333333-185 -> -3124.893333 | D42: =-1989-185 -> -2174 | E42: =-185+-3069.014 -> -3254.014 | F42: 0 | G42: -4606 | H42: 890.1222035 | I42: 997.83134 | J42: 1083.515984 | K42: 208 | L42: -1433 | M42: =388+205 -> 593 | N42: -1710 | O42: =-4495+150 -> -4345
A43: 3 | B43: 370 | E43: =-185+-3068.692 -> -3253.692 | F43: 0 | G43: -4722 | H43: 895.2077383 | I43: 1000.0221 | J43: 896.793601 | K43: 121 | L43: -1243.4798 | M43: =388+205 -> 593 | N43: -1690
A44: 4 | F44: 0 | G44: -4787.5 | H44: 936.3656358 | I44: 1050.458 | J44: 903.7238822 | K44: -43.966 | L44: -1282.3604 | M44: =388+205 -> 593 | N44: -1739
A45: 5 | G45: -4798.3 | H45: 936.9881734 | I45: 0 | J45: 735.8544426 | M45: =388+205 -> 593
A46: 6 | G46: -4808 | H46: 406 | J46: 749.4459825
A47: 7
A48: 8
A49: 9
A50: 10
A51: 11
A52: 12
K57: Trailer Brakes ETN | N57: Drawbar ETN | Q57: Rear hitch ETNs | T57: Tread setting ETNs
I58: Drawbar | K58: 59.92 | L58: ETN209856 | N58: 8.99 | O58: ETN4479 | P58: CAT 4 | Q58: 85.42 | R58: ETN97036_02 | S58: CAT 4 OC | T58: 18.55 | U58: ETN189907 | V58: 76" FA
N59: 88.21 | O59: ETN20103 | Q59: 9.15 | R59: ETN4471_10 | T59: =131.86 -> 131.86 | U59: ETN185709
J60: ETN4478 | N60: 68.58 | O60: ETN20564 | Q60: 50.67 | R60: ETN171078_05 | T60: 131.41 | U60: ETN185711
C61: 342743160 | J61: ETN92940 | N61: 105.68 | O61: ETN20105 | P61: CAT 4 HD | Q61: 23.87 | R61: ETN4464_08 | S61: IF mech | T61: 345.71 | U61: ETN204518
I62: CAT 4 | J62: ETN126256 | K62: CAT 3 | N62: 8.99 | O62: ETN4479 | Q62: 229.62 | R62: ETN4470_34 | T62: 342.69 | U62: ETN204520
I63: CAT HD | J63: ETN216810 | N63: 68.58 | O63: ETN20564 | Q63: 42.24 | R63: ETN20979 | S63: IF Hydraulic | T63: 55.75 | U63: ETN189022 | V63: 80"FA
Q64: 138.39 | R64: ETN149338 | S64: CAT 4 hook sway | T64: =131.86 -> 131.86 | U64: ETN185709
Q65: 9.201 | R65: ETN4723_05 | T65: 131.41 | U65: ETN185711
Q66: 51.14 | R66: ETN198336 | T66: 345.71 | U66: ETN204518
Q67: 24.57 | R67: ETN4465_19 | S67: Mech | T67: 342.69 | U67: ETN204520
G68: 87060000 | Q68: 43.91 | R68: ETN20980 | S68: Hydraulic | T68: 147.62 | U68: ETN190102 | V68: 88"FA
G69: =G72/4 -> 212977930 | Q69: 138.32 | R69: ETN20373 | S69: CAT 4 hook stab | T69: =131.86 -> 131.86 | U69: ETN185709
C70: Tank 1 -612 | E70: Tank 2 | Q70: 51.14 | R70: ETN198336 | T70: 131.41 | U70: ETN185711
C71: Volume | D71: Mass | E71: Volume | F71: Mass | G71: Volume | H71: Mass | I71: Total ETN | J71: CG | Q71: 24.57 | R71: ETN4465_19 | S71: Mech | T71: 345.71 | U71: ETN204518
B72: Full of Fuel | C72: 365092880 | D72: 310.32894 | E72: 486818840 | F72: 413.94206 | G72: =E72+C72 -> 851911720 | H72: 724.271 | I72: 856.12285 | J72: -1282.3604 | Q72: 43.91 | R72: ETN20980 | S72: Hydraulic | T72: 342.69 | U72: ETN204520
B73: 1/2 Fuel | C73: 138191250 | D73: 117.46256 | E73: 290572060 | F73: 247.07342 | G73: 428763310 | H73: 364.53598 | I73: 496.38782 | J73: -1243.4798 | T73: 258.03 | U73: ETN186508 | V73: 120"FA
B74: 23 Gallons | C74: 34351287 | D74: 29.198594 | E74: 49832914 | F74: 42.372927 | G74: 84184201 | H74: 71.571521 | I74: 203.42336 | J74: -1433.7679 | T74: =131.86 -> 131.86 | U74: ETN185709
T75: 131.41 | U75: ETN185711
T76: 345.71 | U76: ETN204518
T77: 342.69 | U77: ETN204520
H78: =7*23 -> 161
T79: 811.95 | U79: ETN176215 | V79: 80" RA
T80: 920 | U80: ETN188759 | V80: 88" RA
T81: 918.47 | U81: ETN190372 | V81: 120" RA
